Workbook

Sheet Introduction
A3: . . . . . . . . . . . . . . . . . . . . . . . . . . . . . . . . . . . . . . . . . . . . . . . . .
B5: Guidelines For Estimating
B6: Swine Farrow-Finish Costs
B7: ="Based On "&'Farrow Input'!G13&" Sows and "&FIXED('Farrow Input'!F79,0)&" Pigs Sold" -> Based On 500 Sows and 13,002 Pigs Sold
G12: Date: | H12: April, 2023
B18: This guide is designed to provide you with planning information and a format for calculating costs of production of a swine farrow to finish enterprise in Manitoba. General Manitoba Agriculture recommendations are assumed in using feed and veterinary inputs. These figures provide an economic evaluation of the livestock and estimated prices required to cover all costs. Costs include labour, investment and depreciation, but do not include management costs, nor do they necessarily represent the average cost of production in Manitoba.
B28: These budgets may be adjusted by putting in your own figures. As a producer you are encouraged to calculate your own costs of production. The assumptions on which the costs are based are outlined in the supporting pages. These assumptions were arrived at using the breeding stock, management practices, and facilities seen in modern, well managed swine operations of comparable size in Manitoba. Productivity and performance assumptions are based on information collected by department specialists, feed companies and other organizations. Where individual herd productivity and performance levels differ from those listed, adjustments will be required.
B40: This tool is available as an Excel worksheet at:
B48: is also available to help
B49: determine machinery costs.
B59: Note: This budget is only a guide and is not intended as an in-depth study of the cost of production of this industry. Interpretation and use of this information is the responsibility of the user. If you need help with a budget, contact a Farm Management Specialist.

Sheet Assumptions
B2: Farrow-Finish Pig Cost of Production
B4: ="The following farrow to finish budget is based on the assumption that all feed is purchased or home-mixed. The budget includes a land investment cost for "&'Farrow Input'!G211&" acres, with "&'Farrow Input'!G212&" acres rented out at $"&'Farrow Input'!G213&" per acre, of the estimated "&ROUND(((('Farrow Finish Worksheet'!D258*'Farrow Input'!F177)/(40.768*2))*2.4709661),0)&" to "&ROUND(((('Farrow Finish Worksheet'!D258*'Farrow Input'!F177)/(26.362*2))*2.4709661),0)&" acres of total landbase that would be required for this size of livestock operation. This land base falls within the 2XP2O5 application rate, soil phosphorus levels permitting." -> The following farrow to finish budget is based on the assumption that all feed is purchased or home-mixed. The budget includes a land investment cost for 40 acres, with 0 acres rented out at $80 per acre, of the estimated 233 to 361 acres of total landbase that would be required for this size of livestock operation. This land base falls within the 2XP2O5 application rate, soil phosphorus levels permitting.
B11: The budget includes an assumption that 1.75% of the market pigs are sold as lightweight pigs. It is assumed that when the lightweight pigs are sold, they will have a salvage value. Therefore, total marketings are reduced by only 1% to compensate for the lightweight pigs.
B16: The budget includes an assumption that this particular operation is "all-in, all-out" by room. Space allocations for finishing pigs are in accordance with the Recommended Code of Practice for the Care and Handling of Farm Animals: Pigs.
B21: The rations illustrated in this budget are examples only. Individual farm conditions should be taken into account when formulating the diets. Producers need to know the feed intakes of their animals. Please consult with a nutritionist for diet information and suggestions.
B26: The Manitoba pork production industry profile is changing and this budget was specifically designed to address the need of producers who may want to analyze the cost of production for a new farrow to finish operation. Several companies are offering contracts with varying levels of guarantees. Producers need to accurately calculate their costs before they can properly make a decision.

Sheet Farrow-Finish Summary
A1: ='Farrow Input'!G13&" Sow Farrow-Finish Cost of Production Summary - "&Introduction!H12 -> 500 Sow Farrow-Finish Cost of Production Summary - April, 2023
E2: Purchased Feed | I2: Home-Mixed Feed
E3: $/Pig | F3: $/Sow | G3: Total | I3: $/Pig | J3: $/Sow | K3: Total | M3: Your
A4: A. Operating Costs | E4: Sold | F4: /Year | G4: Cost | I4: Sold | J4: /Year | K4: Cost | M4: Cost
A5: 1. | B5: Feed Costs:
B6: 1.01 | C6: Sow Lactation | E6: ='Farrow Finish Worksheet'!D16 -> 7.96982845 | F6: =E6*'Farrow Input'!$G$79 -> 207.244569 | G6: =E6*'Farrow Input'!$F$79 -> 103622.2845 | I6: ='Farrow Finish Worksheet'!D25 -> 5.863543988 | J6: =I6*'Farrow Input'!$G$79 -> 152.4735011 | K6: =I6*'Farrow Input'!$F$79 -> 76236.75053
B7: 1.02 | C7: Sow Gestation | E7: ='Farrow Finish Worksheet'!D35 -> 19.64677159 | F7: =E7*'Farrow Input'!$G$79 -> 510.8876227 | G7: =E7*'Farrow Input'!$F$79 -> 255443.8114 | I7: ='Farrow Finish Worksheet'!D44 -> 13.95967896 | J7: =I7*'Farrow Input'!$G$79 -> 363.0024997 | K7: =I7*'Farrow Input'!$F$79 -> 181501.2498
B8: 1.03 | C8: Boar Ration | E8: ='Farrow Finish Worksheet'!D53 -> 0.1316850481 | F8: =E8*'Farrow Input'!$G$79 -> 3.424290901 | G8: =E8*'Farrow Input'!$F$79 -> 1712.14545 | I8: ='Farrow Finish Worksheet'!D61 -> 0.09622712725 | J8: =I8*'Farrow Input'!$G$79 -> 2.502255806 | K8: =I8*'Farrow Input'!$F$79 -> 1251.127903
B9: 1.04 | C9: Pre Starter 1 | E9: ='Farrow Finish Worksheet'!D73 -> 1.433291515 | F9: =E9*'Farrow Input'!$G$79 -> 37.2708 | G9: =E9*'Farrow Input'!$F$79 -> 18635.4 | I9: ='Farrow Finish Worksheet'!D84 -> 0.8002126545 | J9: =I9*'Farrow Input'!$G$79 -> 20.80844371 | K9: =I9*'Farrow Input'!$F$79 -> 10404.22186
B10: 1.05 | C10: Pre Starter 2 | E10: ='Farrow Finish Worksheet'!D96 -> 4.929693638 | F10: =E10*'Farrow Input'!$G$79 -> 128.1899905 | G10: =E10*'Farrow Input'!$F$79 -> 64094.99525 | I10: ='Farrow Finish Worksheet'!D107 -> 2.621541636 | J10: =I10*'Farrow Input'!$G$79 -> 68.16963123 | K10: =I10*'Farrow Input'!$F$79 -> 34084.81562
B11: 1.06 | C11: Starter 1 | E11: ='Farrow Finish Worksheet'!D119 -> 11.38291034 | F11: =E11*'Farrow Input'!$G$79 -> 295.99713 | G11: =E11*'Farrow Input'!$F$79 -> 147998.565 | I11: ='Farrow Finish Worksheet'!D130 -> 6.648885858 | J11: =I11*'Farrow Input'!$G$79 -> 172.8952502 | K11: =I11*'Farrow Input'!$F$79 -> 86447.6251
B12: 1.07 | C12: Starter 2 | E12: ='Farrow Finish Worksheet'!D142 -> 13.64810001 | F12: =E12*'Farrow Input'!$G$79 -> 354.900312 | G12: =E12*'Farrow Input'!$F$79 -> 177450.156 | I12: ='Farrow Finish Worksheet'!D153 -> 9.550191102 | J12: =I12*'Farrow Input'!$G$79 -> 248.3397543 | K12: =I12*'Farrow Input'!$F$79 -> 124169.8771
B13: 1.08 | C13: Starter | E13: ='Farrow Finish Worksheet'!D161 -> 18.552534 | F13: =E13*'Farrow Input'!$G$79 -> 482.4334597 | G13: =E13*'Farrow Input'!$F$79 -> 241216.7299 | I13: ='Farrow Finish Worksheet'!D168 -> 13.49647845 | J13: =I13*'Farrow Input'!$G$79 -> 350.9575993 | K13: =I13*'Farrow Input'!$F$79 -> 175478.7996
B14: 1.09 | C14: Grower | E14: ='Farrow Finish Worksheet'!D176 -> 90.8325 | F14: =E14*'Farrow Input'!$G$79 -> 2361.975848 | G14: =E14*'Farrow Input'!$F$79 -> 1180987.924 | I14: ='Farrow Finish Worksheet'!D183 -> 72.82640062 | J14: =I14*'Farrow Input'!$G$79 -> 1893.751679 | K14: =I14*'Farrow Input'!$F$79 -> 946875.8396
B15: 1.1 | C15: Finisher | E15: ='Farrow Finish Worksheet'!D191 -> 50.36395 | F15: =E15*'Farrow Input'!$G$79 -> 1309.646146 | G15: =E15*'Farrow Input'!$F$79 -> 654823.0728 | I15: ='Farrow Finish Worksheet'!D198 -> 35.313824 | J15: =I15*'Farrow Input'!$G$79 -> 918.2880511 | K15: =I15*'Farrow Input'!$F$79 -> 459144.0255
A16: Total Feed Cost | E16: =SUM(E6:E15) -> 218.8912646 | F16: =SUM(F6:F15) -> 5691.970169 | G16: =SUM(G6:G15) -> 2845985.084 | I16: =SUM(I6:I15) -> 161.1769844 | J16: =SUM(J6:J15) -> 4191.188665 | K16: =SUM(K6:K15) -> 2095594.333
A18: 2. | B18: Other Operating Costs:
B19: 2.01 | C19: Veterinary Medicine & Supplies | E19: ='Farrow Finish Worksheet'!D212 -> 2.884211329 | F19: =E19*'Farrow Input'!$G$79 -> 75 | G19: =E19*'Farrow Input'!$F$79 -> 37500 | I19: =E19 -> 2.884211329 | J19: =I19*'Farrow Input'!$G$79 -> 75 | K19: =I19*'Farrow Input'!$F$79 -> 37500
B20: 2.02 | C20: Maintenance & Repairs | E20: ='Farrow Finish Worksheet'!D218 -> 6.331501739 | F20: =E20*'Farrow Input'!$G$79 -> 164.6421071 | G20: =E20*'Farrow Input'!$F$79 -> 82321.05353 | I20: 6.331501739 | J20: =I20*'Farrow Input'!$G$79 -> 164.6421071 | K20: =I20*'Farrow Input'!$F$79 -> 82321.05353
B21: 2.03 | C21: Hydro & Propane | E21: ='Farrow Finish Worksheet'!D224 -> 9.296335187 | F21: =E21*'Farrow Input'!$G$79 -> 241.7385758 | G21: =E21*'Farrow Input'!$F$79 -> 120869.2879 | I21: 9.296335187 | J21: =I21*'Farrow Input'!$G$79 -> 241.7385758 | K21: =I21*'Farrow Input'!$F$79 -> 120869.2879
B22: 2.04 | C22: Insurance | E22: ='Farrow Finish Worksheet'!D245 -> 4.871836122 | F22: =E22*'Farrow Input'!$G$79 -> 126.6854844 | G22: =E22*'Farrow Input'!$F$79 -> 63342.74218 | I22: 4.871836122 | J22: =I22*'Farrow Input'!$G$79 -> 126.6854844 | K22: =I22*'Farrow Input'!$F$79 -> 63342.74218
B23: 2.05 | C23: Manure Costs | E23: ='Farrow Finish Worksheet'!D288 -> 2.460668551 | F23: =E23*'Farrow Input'!$G$79 -> 63.98634506 | G23: =E23*'Farrow Input'!$F$79 -> 31993.17253 | I23: 2.460668551 | J23: =I23*'Farrow Input'!$G$79 -> 63.98634506 | K23: =I23*'Farrow Input'!$F$79 -> 31993.17253
B24: 2.06 | C24: Office Supplies | E24: ='Farrow Finish Worksheet'!D293 -> 0.0769123021 | F24: =E24*'Farrow Input'!$G$79 -> 2 | G24: =E24*'Farrow Input'!$F$79 -> 1000 | I24: 0.0769123021 | J24: =I24*'Farrow Input'!$G$79 -> 2 | K24: =I24*'Farrow Input'!$F$79 -> 1000
B25: 2.07 | C25: Marketing & Transport. | E25: ='Farrow Finish Worksheet'!D302 -> 5.61 | F25: =E25*'Farrow Input'!$G$79 -> 145.8804339 | G25: =E25*'Farrow Input'!$F$79 -> 72940.21693 | I25: 5.61 | J25: =I25*'Farrow Input'!$G$79 -> 145.8804339 | K25: =I25*'Farrow Input'!$F$79 -> 72940.21693
B26: 2.08 | C26: Artificial Insemination Costs | E26: ='Farrow Finish Worksheet'!D310 -> 1.578817281 | F26: =E26*'Farrow Input'!$G$79 -> 41.055 | G26: =E26*'Farrow Input'!$F$79 -> 20527.5 | I26: 1.578817281 | J26: =I26*'Farrow Input'!$G$79 -> 41.055 | K26: =I26*'Farrow Input'!$F$79 -> 20527.5
B27: 2.09 | C27: Herd Replacement | E27: ='Farrow Finish Worksheet'!D337 -> 1.496259616 | F27: =E27*'Farrow Input'!$G$79 -> 38.9082 | G27: =E27*'Farrow Input'!$F$79 -> 19454.1 | I27: 1.496259616 | J27: =I27*'Farrow Input'!$G$79 -> 38.9082 | K27: =I27*'Farrow Input'!$F$79 -> 19454.1
B28: 2.1 | C28: Property Tax | E28: ='Farrow Finish Worksheet'!D349 -> 0.9229476252 | F28: =E28*'Farrow Input'!$G$79 -> 24 | G28: =E28*'Farrow Input'!$F$79 -> 12000 | I28: 0.9229476252 | J28: =I28*'Farrow Input'!$G$79 -> 24 | K28: =I28*'Farrow Input'!$F$79 -> 12000
A29: Subtotal Operating Costs | E29: =SUM(E19:E28)+E16 -> 254.4207543 | F29: =SUM(F19:F28)+F16 -> 6615.866315 | G29: =SUM(G19:G28)+G16 -> 3307933.158 | I29: =SUM(I19:I28)+I16 -> 196.7064742 | J29: =SUM(J19:J28)+J16 -> 5115.084812 | K29: =SUM(K19:K28)+K16 -> 2557542.406
B30: 2.11 | C30: Interest on Operating Costs | E30: ='Farrow Finish Worksheet'!D361 -> 5.598999203 | F30: =E30*'Farrow Input'!G79 -> 145.5943731 | G30: =E30*'Farrow Input'!F79 -> 72797.18654 | I30: ='Farrow Finish Worksheet'!D368 -> 4.328889736 | J30: =I30*'Farrow Input'!K79 -> 0 | K30: =I30*'Farrow Input'!J79 -> 0
A31: Total Operating Costs | E31: =SUM(E29:E30) -> 260.0197535 | F31: =SUM(F29:F30) -> 6761.460688 | G31: =SUM(G29:G30) -> 3380730.344 | I31: =SUM(I29:I30) -> 201.0353639 | J31: =SUM(J29:J30) -> 5115.084812 | K31: =SUM(K29:K30) -> 2557542.406
A33: B. Fixed Costs
A34: 3. | B34: Depreciation:
B35: 3.01 | C35: Buildings & Manure Storage | E35: ='Farrow Finish Worksheet'!D381 -> 4.73687199 | F35: =E35*'Farrow Input'!$G$79 -> 123.1759253 | G35: =E35*'Farrow Input'!$F$79 -> 61587.96267 | I35: ='Farrow Finish Worksheet'!D388 -> 4.86146992 | J35: =I35*'Farrow Input'!$G$79 -> 126.4159253 | K35: =I35*'Farrow Input'!$F$79 -> 63207.96267
B36: 3.02 | C36: Equipment | E36: ='Farrow Finish Worksheet'!D395 -> 12.75831158 | F36: =E36*'Farrow Input'!$G$79 -> 331.762572 | G36: =E36*'Farrow Input'!$F$79 -> 165881.286 | I36: ='Farrow Finish Worksheet'!D401 -> 13.17363801 | J36: =I36*'Farrow Input'!$G$79 -> 342.562572 | K36: =I36*'Farrow Input'!$F$79 -> 171281.286
B37: Total Depreciation Cost | E37: =SUM(E35:E36) -> 17.49518357 | F37: =SUM(F35:F36) -> 454.9384973 | G37: =SUM(G35:G36) -> 227469.2487 | I37: =SUM(I35:I36) -> 18.03510793 | J37: =SUM(J35:J36) -> 468.9784973 | K37: =SUM(K35:K36) -> 234489.2487
A39: 4. | B39: Investment:
B40: 4.01 | C40: Land cost | E40: ='Farrow Finish Worksheet'!D419 -> 0.3088028929 | F40: =E40*'Farrow Input'!$G$79 -> 8.03 | G40: =E40*'Farrow Input'!$F$79 -> 4015 | I40: =E40 -> 0.3088028929 | J40: =I40*'Farrow Input'!$G$79 -> 8.03 | K40: =I40*'Farrow Input'!$F$79 -> 4015
B41: 4.02 | C41: Buildings & Manure Storage | E41: ='Farrow Finish Worksheet'!D428 -> 5.227112561 | F41: =E41*'Farrow Input'!$G$79 -> 135.9239658 | G41: =E41*'Farrow Input'!$F$79 -> 67961.98292 | I41: ='Farrow Finish Worksheet'!D436 -> 5.279460997 | J41: =I41*'Farrow Input'!$G$79 -> 137.2852158 | K41: =I41*'Farrow Input'!$F$79 -> 68642.60792
B42: 4.03 | C42: Equipment | E42: ='Farrow Finish Worksheet'!D444 -> 2.144105141 | F42: =E42*'Farrow Input'!$G$79 -> 55.75454335 | G42: =E42*'Farrow Input'!$F$79 -> 27877.27167 | I42: ='Farrow Finish Worksheet'!D451 -> 2.213903055 | J42: =I42*'Farrow Input'!$G$79 -> 57.56954335 | K42: =I42*'Farrow Input'!$F$79 -> 28784.77167
B43: 4.04 | C43: Breeding Herd | E43: ='Farrow Finish Worksheet'!D457 -> 0.3923488811 | F43: =E43*'Farrow Input'!$G$79 -> 10.2025 | G43: =E43*'Farrow Input'!$F$79 -> 5101.25 | I43: =E43 -> 0.3923488811 | J43: =I43*'Farrow Input'!$G$79 -> 10.2025 | K43: =I43*'Farrow Input'!$F$79 -> 5101.25
B44: Total Investment Cost | E44: =SUM(E40:E43) -> 8.072369476 | F44: =SUM(F40:F43) -> 209.9110092 | G44: =SUM(G40:G43) -> 104955.5046 | I44: =SUM(I40:I43) -> 8.194515826 | J44: =SUM(J40:J43) -> 213.0872592 | K44: =SUM(K40:K43) -> 106543.6296
A45: Total Fixed Costs | E45: =E37+E44 -> 25.56755305 | F45: =F37+F44 -> 664.8495065 | G45: =G37+G44 -> 332424.7533 | I45: =I37+I44 -> 26.22962376 | J45: =J37+J44 -> 682.0657565 | K45: =K37+K44 -> 341032.8783
A47: C. Labour
B48: ='Farrow Input'!F48 -> 120 | C48: hours/week farrow wean | E48: ='Farrow Finish Worksheet'!D466 -> 12.95818466 | F48: =E48*'Farrow Input'!$G$79 -> 336.96 | G48: =E48*'Farrow Input'!$F$79 -> 168480 | I48: =E48 -> 12.95818466 | J48: =I48*'Farrow Input'!$G$79 -> 336.96 | K48: =I48*'Farrow Input'!$F$79 -> 168480
B49: ='Finish-O'!D47 -> 48 | C49: hours/week grower finish | E49: ='Farrow Finish Worksheet'!D472 -> 5.183273863 | F49: =E49*'Farrow Input'!$G$79 -> 134.784 | G49: =E49*'Farrow Input'!$F$79 -> 67392 | I49: =E49 -> 5.183273863 | J49: =I49*'Farrow Input'!$G$79 -> 134.784 | K49: =I49*'Farrow Input'!$F$79 -> 67392
A50: Total Labour Cost | E50: =SUM(E48:E49) -> 18.14145852 | F50: =SUM(F48:F49) -> 471.744 | G50: =SUM(G48:G49) -> 235872 | I50: =SUM(I48:I49) -> 18.14145852 | J50: =SUM(J48:J49) -> 471.744 | K50: =SUM(K48:K49) -> 235872
A51: Total Cost of Production | E51: =E31+E45+E50 -> 303.7287651 | F51: =F31+F45+F50 -> 7898.054195 | G51: =G31+G45+G50 -> 3949027.097 | I51: =I31+I45+I50 -> 245.4064462 | J51: =J31+J45+J50 -> 6268.894568 | K51: =K31+K45+K50 -> 3134447.284
A53: Profitability and Breakeven Analysis
A55: Estimated Farmgate | E55: $/Pig | F55: $/Sow | G55: Total | I55: Per Pig | J55: $/Sow | K55: Total
B56: Market Price ($ per 100kg) | E56: ='Farrow Input'!F54 -> 202 | I56: =E56 -> 202
B57: Market weight (shrunk-kg/hog live) | E57: =('Farrow Input'!H62)*(1-('Farrow Input'!G78/100)) -> 118.0476 | I57: 118.0476
B58: Dressing % | E58: ='Farrow Input'!H55 -> 80 | I58: 80
B59: Premium per head sold | E59: ='Farrow Input'!F56 -> 2 | I59: 2
B60: Land rental per head sold | E60: =SUM(('Farrow Input'!G212*'Farrow Input'!G213)/'Farrow Input'!F79) -> 0 | I60: 0
B61: Gross Revenue / hog | E61: =SUM(((E57*E58)*('Farrow Input'!$H$54/100)*E56)/10000+E59)+E60 -> 211.8414138 | F61: =E61*'Farrow Input'!$G$79 -> 5508.648369 | G61: =ROUND(E61*'Farrow Input'!$F$79,0) -> 2754324 | I61: 211.8414138 | J61: =I61*'Farrow Input'!$G$79 -> 5508.648369 | K61: =ROUND(I61*'Farrow Input'!$F$79,0) -> 2754324
A63: Marginal Returns
B64: Over Operating Costs | E64: =SUM(E61-E31) -> -48.17833979 | F64: =SUM(F61-F31) -> -1252.812319 | G64: =SUM(G61-G31) -> -626406.3441 | I64: =SUM(I61-I31) -> 10.80604987 | J64: =SUM(J61-J31) -> 393.5635573 | K64: =SUM(K61-K31) -> 196781.5942
B65: Over Operating & Labour Costs | E65: =SUM(E61-E31-E50) -> -66.31979831 | F65: =SUM(F61-F31-F50) -> -1724.556319 | G65: =SUM(G61-G31-G50) -> -862278.3441 | I65: =SUM(I61-I31-I50) -> -7.33540865 | J65: =SUM(J61-J31-J50) -> -78.18044271 | K65: =SUM(K61-K31-K50) -> -39090.40582
B66: Over Total Costs (Net Profit) | E66: =SUM(E61-E51) -> -91.88735135 | F66: =SUM(F61-F51) -> -2389.405826 | G66: =SUM(G61-G51) -> -1194703.097 | I66: =SUM(I61-I51) -> -33.56503241 | J66: =SUM(J61-J51) -> -760.2461992 | K66: =SUM(K61-K51) -> -380123.2841
A68: Operating Expense Ratio | E68: =SUM(E31/E61) -> 1.227426446 | I68: =SUM(I31/I61) -> 0.9489899086
A70: Breakeven Selling Price | E70: $/100 kg | F70: $/cwt | I70: $/100 kg | J70: $/cwt
B71: Operating Costs | E71: =(E31/(('Farrow Input'!$H$62*(1-('Farrow Input'!$G$78/100))*'Farrow Input'!$H$55/100*'Farrow Input'!$H$54/100))*100) -> 250.3032613 | F71: =E71/2.2046 -> 113.5368145 | I71: =(I31/(('Farrow Input'!$H$62*(1-('Farrow Input'!G78/100))*'Farrow Input'!$H$55/100*'Farrow Input'!$H$54/100))*100) -> 193.5230171 | J71: =I71/2.2046 -> 87.78146471
B72: Operating & Labour Costs | E72: =((E31+E50)/(('Farrow Input'!$H$62*(1-('Farrow Input'!$G$78/100)))*'Farrow Input'!$H$55/100*'Farrow Input'!$H$54/100))*100 -> 267.7668046 | F72: =E72/2.2046 -> 121.4582258 | I72: =((I31+I50)/(('Farrow Input'!$H$62*(1-('Farrow Input'!$G$78/100)))*'Farrow Input'!$H$55/100*'Farrow Input'!$H$54/100))*100 -> 210.9865604 | J72: =I72/2.2046 -> 95.702876
B73: Total Costs | E73: =((E31+E50+E45)/(('Farrow Input'!$H$62*(1-('Farrow Input'!$G$78/100))*'Farrow Input'!$H$55/100*'Farrow Input'!$H$54/100))*100) -> 292.378942 | F73: =E73/2.2046 -> 132.6222181 | I73: =((I31+I50+I45)/(('Farrow Input'!$H$62*(1-('Farrow Input'!$G$78/100))*'Farrow Input'!$H$55/100*'Farrow Input'!$H$54/100))*100) -> 236.2360281 | J73: =I73/2.2046 -> 107.1559594
A75: Return On Assets (ROA) | E75: =SUM(((E66+E30+E44)*'Farrow Input'!$H$66)/('Farrow Input'!$H$129+'Farrow Input'!$H$118+(('Farrow Input'!$H$62*(1-('Farrow Input'!$G$78/100))/2)*('Farrow Input'!$F$54/100)*'Farrow Input'!$I$70))) -> -0.1399972042 | I75: =SUM(((I66+I30+I44)*'Farrow Input'!$H$66)/('Farrow Input'!$H$129+'Farrow Input'!$H$118+(('Farrow Input'!$H$62*(1-('Farrow Input'!$G$78/100))/2)*('Farrow Input'!$F$54/100)*'Farrow Input'!$I$70))) -> -0.03766198199
A77: ¹ FOOTNOTE: Break-even Price = Cost per Hog Sold ÷ (Slaughter Weight(-shrink) X Dressing Percentage X Index)
A78: Note: This budget is only a guide and is not intended as an in depth study of the cost of production of this industry. Interpretation and utilization of this information is the responsibility of the user.

Sheet Risk Analysis
A1: Risk & Sensitivity Analysis
C3: Purchased Feed | E3: Home-Mixed Feed
C4: Per Pig | E4: Per Pig
A5: A. Operating Costs
B6: Feed cost | C6: ='Farrow-Finish Summary'!E16 -> 218.8912646 | E6: ='Farrow-Finish Summary'!I16 -> 161.1769844
B7: Other Operating Costs | C7: =SUM(C8-C6) -> 41.12848896 | E7: =SUM(E8-E6) -> 39.85837949
B8: Subtotal | C8: ='Farrow-Finish Summary'!E31 -> 260.0197535 | E8: ='Farrow-Finish Summary'!I31 -> 201.0353639
A9: B. Fixed Costs | C9: ='Farrow-Finish Summary'!E45 -> 25.56755305 | E9: ='Farrow-Finish Summary'!I45 -> 26.22962376
A10: C. Labour | C10: ='Farrow-Finish Summary'!E50 -> 18.14145852 | E10: ='Farrow-Finish Summary'!I50 -> 18.14145852
A11: Total Costs | C11: =SUM(C8:C10) -> 303.7287651 | E11: =SUM(E8:E10) -> 245.4064462
A13: Estimated Farmgate
B14: Price ($ per 100kg) | C14: ='Farrow-Finish Summary'!E56 -> 202 | E14: ='Farrow-Finish Summary'!I56 -> 202
C17: Up | E17: Down
B18: Percent Market Price Variation | C18: 0.1 | E18: 0.1
B19: Percent Feed Cost Variation | C19: 0.1 | E19: 0.05
B22: Higher Price ($ per 100kg) | C22: =SUM(C14*(1+C18)) -> 222.2 | E22: =SUM(E14*(1+C18)) -> 222.2
B23: Lower Price ($ per 100kg) | C23: =SUM(C14*(1-E18)) -> 181.8 | E23: =SUM(E14*(1-E18)) -> 181.8
B24: Higher Feed Cost | C24: =SUM(C6+(C6*(C19))) -> 240.780391 | E24: =SUM(E6+(E6*C19)) -> 177.2946828
B25: Lower Feed Cost | C25: =SUM(C6-(C6*E19)) -> 207.9467014 | E25: =SUM(E6-(E6*E19)) -> 153.1181352
A28: ="Higher Margin Scenario - Price Up "&C18*100&"% and Feed Price Down "&E19*100&"%" -> Higher Margin Scenario - Price Up 10% and Feed Price Down 5%
B29: Operating Costs | C29: =SUM(C7+C25) -> 249.0751903 | E29: =SUM(E7+E25) -> 192.9765147
B30: Total Costs | C30: =C29+C10+C9 -> 292.7842019 | E30: =E29+E10+E9 -> 237.3475969
B31: Gross Revenue / hog | C31: =SUM((('Farrow-Finish Summary'!$E$57*'Farrow-Finish Summary'!$E$58)*('Farrow Input'!$H$54/100)*C22)/10000+'Farrow-Finish Summary'!$E$59) -> 232.8255551 | E31: =SUM((('Farrow-Finish Summary'!$E$57*'Farrow-Finish Summary'!$E$58)*('Farrow Input'!$H$54/100)*E22)/10000+'Farrow-Finish Summary'!$E$59) -> 232.8255551
B32: Marginal Returns
B33: Over Operating Costs | C33: =SUM(C31-C29) -> -16.24963518 | E33: =SUM(E31-E29) -> 39.84904047
B34: Over Operating & Labour Costs | C34: =SUM(C31-C29-C10) -> -34.3910937 | E34: =SUM(E31-E29-E10) -> 21.70758195
B35: Over Total Costs (Net Profit) | C35: =SUM(C31-C30) -> -59.95864675 | E35: =SUM(E31-E30) -> -4.522041813
B36: Operating Expense Ratio | C36: =SUM(C29/C31) -> 1.069793177 | E36: =SUM(E29/E31) -> 0.8288459338
B37: Return on Asset (ROA) | C37: =SUM(((C35+'Farrow-Finish Summary'!$E$30+'Farrow-Finish Summary'!$E$44)*'Farrow Input'!$H$66)/('Farrow Input'!$H$129+'Farrow Input'!$H$118+(('Farrow Input'!$H$62*(1-('Farrow Input'!$G$78/100))/2)*('Farrow Input'!$F$54/100)*'Farrow Input'!$I$70))) -> -0.08284866211 | E37: =SUM(((E35+'Farrow-Finish Summary'!$E$30+'Farrow-Finish Summary'!$E$44)*'Farrow Input'!$H$66)/('Farrow Input'!$H$129+'Farrow Input'!$H$118+(('Farrow Input'!$H$62*(1-('Farrow Input'!$G$78/100))/2)*('Farrow Input'!$F$54/100)*'Farrow Input'!$I$70))) -> 0.01637619496
A39: ="Lower Margin Scenario - Price Down "&E18*100&"% and Feed Price Up "&C19*100&"%" -> Lower Margin Scenario - Price Down 10% and Feed Price Up 10%
B40: Operating Costs | C40: =SUM(C7+C24) -> 281.90888 | E40: =SUM(E7+E24) -> 217.1530623
B41: Total Costs | C41: =C9+C10+C40 -> 325.6178916 | E41: =E9+E10+E40 -> 261.5241446
B42: Gross Revenue / hog | C42: =SUM((('Farrow-Finish Summary'!$E$57*'Farrow-Finish Summary'!$E$58)*('Farrow Input'!$H$54/100)*C23)/10000+'Farrow-Finish Summary'!$E$59) -> 190.8572724 | E42: =SUM((('Farrow-Finish Summary'!$E$57*'Farrow-Finish Summary'!$E$58)*('Farrow Input'!$H$54/100)*E23)/10000+'Farrow-Finish Summary'!$E$59) -> 190.8572724
B43: Marginal Returns
B44: Over Operating Costs | C44: =SUM(C42-C40) -> -91.05160762 | E44: =SUM(E42-E40) -> -26.29578995
B45: Over Operating & Labour Costs | C45: =SUM(C42-C40-C10) -> -109.1930661 | E45: =SUM(E42-E40-E10) -> -44.43724847
B46: Over Total Costs (Net Profit) | C46: =SUM(C42-C41) -> -134.7606192 | E46: =SUM(E42-E41) -> -70.66687223
B47: Operating Expense Ratio | C47: =SUM(C40/C42) -> 1.477066483 | E47: =SUM(E40/E42) -> 1.137777249
B48: Return on Asset (ROA) | C48: =SUM(((C46+'Farrow-Finish Summary'!$E$30+'Farrow-Finish Summary'!$E$44)*'Farrow Input'!$H$66)/('Farrow Input'!$H$129+'Farrow Input'!$H$118+(('Farrow Input'!$H$62*(1-('Farrow Input'!$G$78/100))/2)*('Farrow Input'!$F$54/100)*'Farrow Input'!$I$70))) -> -0.2167351985 | E48: =SUM(((E46+'Farrow-Finish Summary'!$E$30+'Farrow-Finish Summary'!$E$44)*'Farrow Input'!$H$66)/('Farrow Input'!$H$129+'Farrow Input'!$H$118+(('Farrow Input'!$H$62*(1-('Farrow Input'!$G$78/100))/2)*('Farrow Input'!$F$54/100)*'Farrow Input'!$I$70))) -> -0.1020150981
A51: Note: This budget is only a guide and is not intended as an in depth study of the cost of production of this industry. Interpretation and utilization of this information is the responsibility of the user.

Sheet Farrow Input
A2: Farrow - Finish Pig Production Costs
A4: 1 | B4: This input table outlines the cost of production for a farrow finish operation.
A5: 2 | B5: Buildings and equipment are valued at new cost.
A6: 3 | B6: Purchased feed is used for creep and starter all other feed is home mixed.
A7: 4 | B7: Manure haulage is contracted out.
A8: 5 | B8: Gilts are purchased for herd replacement.
A9: 6 | B9: No weaner pigs are sold.
A11: Farrow - Wean Pig Production Assumptions
A12: Indicators of Productivity
A13: Sows | G13: 500
A14: Boars | G14: 3
A15: Litters/Sow/Year | G15: 2.38
A16: Average Weaning Age (days) | G16: 21
A17: Average Born Alive per Litter | G17: 13.5
A18: Percent Pre-Weaning Mortality | G18: 12.5
A19: Percent Post-Weaning Mortality | G19: 2.44
A21: Herd Profile | E21: Total | F21: /Sow | G21: /Litter | H21: %Mortality
A22: Sows | E22: =G13 -> 500
A23: Boars | E23: =G14 -> 3
A24: Litters | E24: =ROUND(F24*E22,0) -> 1190 | F24: =G15 -> 2.38
A25: Pigs Born Alive | E25: =ROUND(G17*E24,0) -> 16065 | F25: =ROUND(E25/E22,2) -> 32.13 | G25: =G17 -> 13.5
A26: Pigs Died, Pre-Weaning | E26: =ROUND(G18*E25/100,0) -> 2008 | F26: =ROUND(E26/E22,2) -> 4.02 | G26: =ROUND(E26/E24,2) -> 1.69 | H26: =G18 -> 12.5
A27: Pigs Weaned | E27: =E25-E26 -> 14057 | F27: =ROUND(E27/E22,2) -> 28.11 | G27: =ROUND(E27/E24,2) -> 11.81
A28: Pigs Died, Post-Weaning | E28: =ROUND(G19*E27/100,0) -> 343 | F28: =ROUND(E28/E22,2) -> 0.69 | G28: =ROUND(E28/E24,2) -> 0.29 | H28: =G19 -> 2.44
A29: Weaner Pigs Transferred | E29: =ROUND(E27-E28,0) -> 13714 | F29: =ROUND(E29/E22,2) -> 27.43 | G29: =ROUND(E29/E24,2) -> 11.52
A31: Feed Requirements and Costs | G31: Purchased | H31: Home-Mixed
A32: Dry Sow Ration | E32: 2.95 | F32: kg/day | G32: 549.75 | H32: =('Feed-Summary'!H29) -> 390.6155 | I32: /tonne | M32: =SUM(G32:H32) -> 940.3655
A33: Nursing Sow Ration | E33: 6.53 | F33: kg/day | G33: 635 | H33: =('Feed-Summary'!H55) -> 467.18075 | I33: /tonne | M33: 1102.18075
A34: Boar Ration | E34: 3 | F34: kg/day | G34: 549.75 | H34: =('Feed-Summary'!H81) -> 401.722625 | I34: /tonne | M34: 951.472625
A35: Per Starter 1(Ration 1) | E35: 0.58 | F35: kg | G35: 2000 | H35: =('Feed-Summary'!H107) -> 1116.608375 | I35: /tonne | M35: 3116.608375
A36: Pre Starter 2 (Ration 2) | E36: 2.9 | F36: kg | G36: 1611.5 | H36: =('Feed-Summary'!H133) -> 856.973 | I36: /tonne | M36: 2468.473
A37: Starter 1 (Ration 3) | E37: 9 | F37: kg | G37: 1199 | H37: =('Feed-Summary'!H159) -> 700.349375 | I37: /tonne | M37: 1899.349375
A38: Starter 2 (Ration 4) | E38: 16 | F38: kg | G38: 808.65 | H38: =('Feed-Summary'!H185) -> 565.848875 | I38: /tonne | M38: 1374.498875
A40: Weaner Pig Efficiency | E40: Ration 1 | F40: Ration 2 | G40: Ration 3 | H40: Ration 4 | I40: Total
A41: Days Post-Weaning (nursery) | E41: 2 | F41: 8 | G41: 17 | H41: 15 | I41: =SUM(E41:H41) -> 42
A42: Target Starting Weight (kg) | E42: 6 | F42: 6.5 | G42: 9 | H42: 16 | I42: =E42 -> 6
A43: Target Ending Weight (kg) | E43: 6.5 | F43: 9 | G43: 16 | H43: 26 | I43: =H43 -> 26
A44: Feed Conversion Ratio | E44: =E35/(E43-E42) -> 1.16 | F44: =E36/(F43-F42) -> 1.16 | G44: =E37/(G43-G42) -> 1.285714286 | H44: =E38/(H43-H42) -> 1.6 | I44: =((E44*($E$43-$E$42))+(F44*($F$43-$F$42))+(G44*($G$43-G$42))+(H44*($H$43-$H$42)))/($H$43-$E$42) -> 1.424
A45: Average Daily Gain (kg) | E45: =(E43-E42)/E41 -> 0.25 | F45: =(F43-F42)/F41 -> 0.3125 | G45: =(G43-G42)/G41 -> 0.4117647059 | H45: =(H43-H42)/H41 -> 0.6666666667 | I45: =((E45*($E$43-$E$42))+(F45*($F$43-$F$42))+(G45*($G$43-G$42))+(H45*($H$43-$H$42)))/($H$43-$E$42) -> 0.5227634804
A47: Labour
A48: Total Hours per 7-day week | E48: =I48/G13 -> 12.48 | F48: 120 | G48: hours/week (include manager) | I48: =F48*52 -> 6240
A49: Hourly Wage (including hired manager) | F49: 27 | G49: /hour (weighted)
A52: Grower-Finisher Pig Production Assumptions
C53: Livestock values are based on
C54: a Market Price for Pork of: | F54: 202 | G54: /100 kg | H54: 110 | I54: Market Index
E55: or: | F55: =F54/2.2046 -> 91.62659893 | G55: /cwt | H55: 80 | I55: % Dressing
E56: Premium: | F56: 2 | G56: /head
B59: Indicators of Productivity | F59: =B85 -> Starter | G59: =B86 -> Grower | H59: =B87 -> Finish | I59: Total
B60: No. of Pigs (Beginning) | F60: ='Farrow Input'!E29 -> 13714 | G60: =F66 -> 13583.717 | H60: =G66 -> 13454.67169 | I60: --
B61: Average Beginning Weight (kg) | F61: =H43 -> 26 | G61: =F62 -> 40 | H61: =G62 -> 95 | I61: --
B62: Average Ending Weight (kg) | F62: 40 | G62: 95 | H62: 121 | I62: --
B63: Percent Mortality | F63: 0.95 | G63: 0.95 | H63: 0.95 | I63: =((F60-H66)/F60)*100 -> 2.823010737
B64: Days on Feed | F64: 23 | G64: 65 | H64: 28 | I64: =SUM(F64:H64) -> 116
B65: Feed Conversion Ratio ¹ | F65: 1.95 | G65: 3 | H65: 3.5 | I65: =(F65*(F62-F61)+G65*(G62-G61)+H65*(H62-H61))/(H62-F61) -> 2.982105263
B66: No. of Pigs (Ending) | F66: =F60-(F60*F63/100) -> 13583.717 | G66: =G60-(G60*G63/100) -> 13454.67169 | H66: =H60-(H60*H63/100) -> 13326.85231 | I66: --
B67: Weight Gain/Pig (kg) | F67: =F62-F61 -> 14 | G67: =G62-G61 -> 55 | H67: =H62-H61 -> 26 | I67: =SUM(F67:H67) -> 95
B68: Feed Disappearance/Pig (kg) | F68: =F65*F67 -> 27.3 | G68: =G65*G67 -> 165 | H68: =H65*H67 -> 91 | I68: =SUM(F68:H68) -> 283.3
B69: Average Daily Gain (kg) | F69: =(F62-F61)/F64 -> 0.6086956522 | G69: =(G62-G61)/G64 -> 0.8461538462 | H69: =(H62-H61)/H64 -> 0.9285714286 | I69: =I67/I64 -> 0.8189655172
B70: Average No. Pigs in Barn ² | F70: =((F60+F66)/2)/(365/I64) -> 4337.719414 | G70: =(G60+G66)/2/(365/I64) -> 4296.511079 | H70: =(H60+H66)/2/(365/I64) -> 4255.694224 | I70: =SUM(F70:H70)/3 -> 4296.641572
B71: ¹ FOOTNOTE: The Feed Conversion Ratio (FCR) in the 'Total' column is a weighted average of the other feed conversion ratios. Also note that an accurate feed conversion ratio for the grower-finisher enterprise is calculated by dividing 'Total Feed used per Year' by 'Total Gain per Year'; where 'Total Gain per Year' equals 'Total Hogs Sold' times 'Gain per Hog'. When calculated in this way, the feed conversion ratio includes feed lost through wastage and weight gain lost through death of pigs.
B72: ² FOOTNOTE: Assume that "Avg. No. of Pigs in Barn" equals "Pig Places".
B74: Productivity Profile | F74: Total
B75: Pigs transferred | F75: =F60 -> 13714
B76: Pigs Died | F76: =ROUND(F75*I63/100,0) -> 387 | G76: 2.8 | H76: % mortality
B77: Pigs available for marketing | F77: =F75-F76 -> 13327
B78: Less light weight pig adjustment | F78: =F77*G78/100 -> 325.1788 | G78: 2.44 | H78: % light weight adjustment
B79: Pigs Sold at full market value | F79: =F77-F78 -> 13001.8212 | G79: =F79/'Farrow Input'!E22 -> 26.0036424 | H79: sold/sow
B80: Total Days to Market | F80: ='Farrow Input'!G16+'Farrow Input'!E41+'Farrow Input'!F41+F64+G64+H64+G43+H43 -> 189
B81: Turnover finish | F81: =ROUND(365/I64,2) -> 3.15
B82: Turnover wean to finish | F82: =365/(I64+I41) -> 2.310126582
B83: Feed Requirements and Costs | G83: Ration Cost
D84: FCR* | E84: kg/pig | G84: Purchased | H84: Home-Mixed
B85: Starter | D85: =F65 -> 1.95 | E85: =D85*(F62-F61) -> 27.3 | G85: 679.58 | H85: =('Feed-Summary'!H211) -> 494.3765 | I85: /tonne
B86: Grower | D86: =G65 -> 3 | E86: =D86*(G62-G61) -> 165 | G86: 550.5 | H86: =('Feed-Summary'!H237) -> 441.372125 | I86: /tonne
B87: Finish | D87: =H65 -> 3.5 | E87: =D87*(H62-H61) -> 91 | G87: 553.45 | H87: =('Feed-Summary'!H263) -> 388.064 | I87: /tonne
C88: * FCR = Feed Conversion Ratio (Feed:Gain)
B89: Labour
B90: Total Hours per year | E90: 0.36 | F90: 48 | G90: hours/week | H90: =F90*52 -> 2496 | I90: hours/year
B91: Wage (incl. benefits @15%) | F91: 27 | G91: /hour (weighted)
D94: Capital Costs
C95: =E29/3 -> 4571.333333 | D95: pig places feeder barn
G96: $/Sq.Ft. | H96: Total | I96: /Sow
A97: Buildings
B98: Gestation | E98: =G13*27 -> 13500 | F98: sq.ft. | G98: 64 | H98: =E98*G98 -> 864000 | I98: =H98/E22 -> 1728
B99: Farrowing/Nursing | E99: =E24*15 -> 17850 | F99: sq.ft. | G99: 77 | H99: =E99*G99 -> 1374450 | I99: =H99/E22 -> 2748.9
B100: Feeder Barn | E100: =C95*9.2 -> 42056.26667 | F100: sq.ft. | G100: 50 | H100: =E100*G100 -> 2102813.333 | I100: =H100/E22 -> 4205.626667
B101: Office & Loading | E101: 300 | F101: sq.ft. | G101: 50 | H101: =E101*G101 -> 15000 | I101: =H101/E22 -> 30
B102: Standby Generator | H102: 28000 | I102: =H102/E22 -> 56
B103: Feed Mill (building only) | H103: 45000 | I103: =H103/E22 -> 90
B104: Total Building Cost | H104: =SUM(H98:H103) -> 4429263.333 | I104: =H104/E22 -> 8858.526667
A106: Equipment | G106: $/Sq.Ft.
B107: Gestation | G107: 26.5 | H107: =G107*E98 -> 357750 | I107: =H107/E22 -> 715.5
B108: Farrowing/Nursing | G108: 26.5 | H108: =G108*E99 -> 473025 | I108: =H108/E22 -> 946.05
B109: Finishing Barn | G109: 24 | H109: ='Farrow Input'!G109*'Farrow Input'!E100 -> 1009350.4 | I109: =H109/E22 -> 2018.7008
B110: Fire Alarm System | H110: 3000 | I110: =H110/E22 -> 6
B111: Feed Mill (equipment only). | H111: 60000 | I111: =H111/E22 -> 120
B112: Total Equipment Cost | H112: =SUM(H107:H111) -> 1903125.4 | I112: =H112/E22 -> 3806.2508
A113: Total Buildings and Equipment Cost | H113: =H104+H112 -> 6332388.733 | I113: =H113/E22 -> 12664.77747
A115: Breeding Stock
B116: Value of Replacement Sow | E116: 350 | F116: /sow | H116: =E116*E22 -> 175000 | I116: =H116/E22 -> 350
B117: Value of Replacement Boar | E117: 3500 | F117: /boar | H117: =E117*E23 -> 10500 | I117: =H117/E22 -> 21
A118: Total Breeding Stock Cost | H118: =SUM(H116:H117) -> 185500 | I118: =H118/E22 -> 371
A120: Land Value
B121: Land Investment | D121: =G211-G212 -> 40 | E121: acres @ | F121: =G214 -> 2750 | G121: /acre | H121: =D121*F121 -> 110000 | I121: =H121/E22 -> 220
B122: Land Investment | D122: =G212 -> 0 | E122: acres @ | F122: =G214 -> 2750 | G122: /acre | H122: =D122*F122 -> 0 | I122: =H122/E22 -> 0
A124: Other Costs
B125: Site Preparation | H125: 36000 | I125: =H125/E22 -> 72
B126: Manure Storage | H126: 120000 | I126: =H126/E22 -> 240
A127: Total Other Costs | H127: =SUM(H125:H126) -> 156000 | I127: =SUM(I125:I126) -> 312
A129: Total Capital Investment | H129: =H113+H118+H121+H126 -> 6747888.733 | I129: =H129/E22 -> 13495.77747
A131: ¹ FOOTNOTE: The number of square feet allocated for buildings and equipment are approximations. Cost per sow for buildings and equipment will vary around the province.
A132: FOOTNOTE: 1 sq.ft. = 0.0929 sq.m; 1 sq.m.= 10.764 sq.ft.; 1 ft.= 0.3048 m
A135: Fixed Costs
A136: Depreciation (straight line):
B137: Useful Life:
C138: Buildings | G138: 25 | H138: years
C139: Equipment | G139: 10 | H139: years
B140: Salvage Value (% of original cost):
C141: Buildings | G141: 10 | H141: %
C142: Equipment | G142: 10 | H142: %
A144: Investment Interest Rate | G144: 2.75 | H144: %
A147: Other Operating Costs, Taxes and Land
A148: Veterinary Cost: | D148: Professional Services | G148: 10 | H148: /sow
D149: Medication | G149: 65 | H149: /sow
D150: Sevices and Medication | G150: 0 | H150: /pig transferred in
A152: Maintenance & Repair | G152: 1.3 | H152: % of Total Capital Investment
A154: Hydro & Propane | F154: Hydro rate | G154: 0.09324 | H154: per kwhr
F155: Hydro usage | G155: 512058 | H155: kwhr
F156: Propane rate | G156: 0.75 | H156: per litre
F157: Propane usage | G157: 97500 | H157: litres
A159: Insurance
C160: Buildings & equipment | G160: 0.78 | H160: /$100 Capital Invested
C161: Breeding stock and market hogs | G161: 0.88 | H161: /$100 Capital Invested
C162: Business Interruption | G162: 0.78 | H162: /$100 Capital Invested
C163: Business Interruption Value | G163: 1200 | H163: per sow
C164: Estimated value of market hogs | G164: 202 | H164: per market hog
A166: Manure Costs
C167: Storage volume | G167: 68 | H167: litres/sow/day ³
C168: Cost per litre | G168: 0.0029 | H168: /litre
C169: Cost per gallon | G169: =G168*4.56409 -> 0.013235861 | H169: /gallon
C170: Odour control (barley straw) | G170: 0 | H170: total costs
C171: Manure Management Fees | G171: 3000 | H171: total costs
C173: Manure nutrient content | F173: nutrient | G173: fertilizer | H173: % nutrient
F174: kg/1000 | G174: value | H174: value cost
F175: litres | G175: $/lb | H175: recovery / sale
C176: Total Nitrogen | F176: 2.69 | G176: 0.77 | H176: 60
C177: Phosphate (P2O5) | F177: 0.62 | G177: 0.89 | H177: 0
C178: Potassium | F178: 1.14 | G178: 0.6 | H178: 0
E179: * kg/1000 L x 10 = lbs/1000 imp. Gallons
A180: Office Supplies
E181: Estimated rate/ sow | G181: 2 | H181: $/sow
A183: Marketing & Transportation
E185: Trucking in | G185: 0 | H185: /pig sold
E186: Trucking out | G186: 4.5 | H186: /pig sold
E187: Council Levy | G187: 0.8 | H187: /pig sold
E188: Grading Charge | G188: 0.06 | H188: /pig sold
E189: Insurance | G189: 0.25 | H189: /pig sold
E190: Special Levy | G190: 0 | H190: /pig sold
A192: Breeding Herd Replacement: | G192: 40 | H192: % of sows replaced per year
B193: Cull Sow Weight | G193: 180 | H193: kg
B194: Cull Sow Price (live weight) | G194: ='Farrow Input'!F54*0.56 -> 113.12 | H194: /100kg
B195: Cull Sow Price (dressed weight) | G195: =ROUND(+G194/0.8,2) -> 141.4 | H195: /100kg
B196: Value of Replacement Sow | G196: 300 | H196: /sow
A197: Boar Replacement Rate: | G197: 50 | H197: % of boars replaced per year
B198: Cull Boar Weight | G198: 225 | H198: kg
B199: Cull Boar Price (live) | G199: ='Farrow Input'!F54*0.4 -> 80.8 | H199: /100kg
B200: Cull Boar Price (dressed) | G200: =G199/0.8 -> 101 | H200: /100kg
B201: Value of Replacement Boar | G201: 300 | H201: /boar
C202: Breeding Costs
C203: Number of services/sow | G203: 2.3 | I203: =((G203*G204)*G13)*G15 -> 20527.5
C204: Cost/dose (semen) | G204: 7.5 | I204: =I203/F79 -> 1.578817281
A206: Property Tax: | C206: Grower-Finisher Barn & Land | G206: 0 | H206: /year
C207: Farrow-Finish Barn & Land | G207: 12000 | H207: /year
C208: Land | G208: 10 | H208: /acre
B210: Land Value for Grower-Finisher Operation:
C211: Number of Acres | G211: 40 | H211: acres
C212: Number of Acres rented out | G212: 0 | H212: acres
C213: Rental rate (income) | G213: 80 | H213: /acre
C214: Land Value per Acre | G214: 2750 | H214: /acre
A216: Operating Loan Interest Rate | G216: 8.5 | H216: %
A218: ³ FOOTNOTE: 1000 litres = 35.314 cubic feet

Sheet Feed Input
A1: Feed Ingredient Costs
E3: Price ($/tonne) | F3: Your Cost
B4: Wheat | E4: 370
B5: Barley | E5: 320
B6: Corn | E6: 355
B7: Soybean Meal | E7: 665
B8: Canola Meal | E8: 425
B9: Peas | E9: 390
B10: Sow Micro Premix | E10: 4000
B11: Grower Micro Premix | E11: 8000
B12: Canola Oil | E12: 2400
B13: Whey Powder | E13: 1364.6
B14: Fish Meal | E14: 3364.4
B15: Plasma | E15: 5270
B16: Limestone | E16: 203.95
B17: Dical (16% Ca-21% P) | E17: 1544.23
B18: Salt - 96% | E18: 261.9
B19: Phytase | E19: 14500
B20: L-Lysine HCL | E20: 2248.5
B21: L-Threonine | E21: 2815.6
B22: D L-Methionine | E22: 3850.2
B23: Oats - Groats | E23: 375
B24: Processing Cost
B25: (Hydro, Repairs/Maintenance & Insurance) | E25: 10
B26: Percent Weight loss due to processing | E26: 1.25
B27: Labour Cost | E27: 10
B29: Ration Formulas | D29: Sow | E29: Sow | F29: Boar
D30: Gestation | E30: Lactation | F30: Ration
D31: (kg) | E31: (kg) | F31: (kg)
B32: =B4 -> Wheat | D32: 0 | E32: 300 | F32: 200
B33: Barley | D33: 877 | E33: 464 | F33: 599
B34: Corn | D34: 0 | E34: 0 | F34: 0
B35: Soybean Meal | D35: 0 | E35: 197 | F35: 0
B36: Canola Meal | D36: 87 | E36: 0 | F36: 80
B37: Peas | D37: 0 | E37: 0 | F37: 91
B38: =B10 -> Sow Micro Premix | D38: 5 | E38: 5 | F38: 5
B39: =B11 -> Grower Micro Premix | D39: 0 | E39: 0 | F39: 0
B40: Canola Oil | D40: 0 | E40: 0 | F40: 0
B41: Whey Powder | D41: 0 | E41: 0 | F41: 0
B42: Fish Meal | D42: 0 | E42: 0 | F42: 0
B43: Plasma | D43: 0 | E43: 0 | F43: 0
B44: Limestone | D44: 16 | E44: 16.5 | F44: 14
B45: Dical (16% Ca-21% P) | D45: 11 | E45: 11 | F45: 7
B46: Salt - 96% | D46: 3.5 | E46: 5 | F46: 3.5
B47: Phytase | D47: 0.5 | E47: 0.5 | F47: 0.5
B48: L-Lysine HCL | D48: 0 | E48: 1 | F48: 0
B49: L-Threonine | D49: 0 | E49: 0 | F49: 0
B50: D L-Methionine | D50: 0 | E50: 0 | F50: 0
B51: Oats - Groats | D51: 0 | E51: 0 | F51: 0
B52: Total Must Equal 1000kg | D52: =SUM(D32:D51) -> 1000 | E52: =SUM(E32:E51) -> 1000 | F52: =SUM(F32:F51) -> 1000
D55: Pre Starter 1 | E55: Pre Starter 2 | F55: Starter 1 | G55: Starter 2
D56: (kg) | E56: (kg) | F56: (kg) | G56: (kg)
B57: =B4 -> Wheat | D57: 106 | E57: 134.5 | F57: 405 | G57: 404
B58: Barley | D58: 0 | E58: 0 | F58: 0 | G58: 65
B59: Corn | D59: 0 | E59: 0 | F59: 249 | G59: 250
B60: Soybean Meal | D60: 120 | E60: 130 | F60: 200 | G60: 227
B61: Canola Meal | D61: 0 | E61: 0 | F61: 0 | G61: 0
B62: Peas | D62: 0 | E62: 0 | F62: 0 | G62: 0
B63: =B10 -> Sow Micro Premix | D63: 5 | E63: 5 | F63: 5 | G63: 5
B64: =B11 -> Grower Micro Premix | D64: 0 | E64: 0 | F64: 0 | G64: 0
B65: Canola Oil | D65: 27 | E65: 19 | F65: 11 | G65: 0
B66: Whey Powder | D66: 121 | E66: 125 | F66: 70 | G66: 0
B67: Fish Meal | D67: 61 | E67: 75 | F67: 40 | G67: 25
B68: Plasma | D68: 59 | E68: 0 | F68: 0 | G68: 0
B69: Limestone | D69: 12.5 | E69: 12.5 | F69: 7 | G69: 11
B70: Dical (16% Ca-21% P) | D70: 10 | E70: 10 | F70: 8 | G70: 8
B71: Salt - 96% | D71: 3.5 | E71: 3.5 | F71: 3.5 | G71: 3.5
B72: Phytase | D72: 0 | E72: 0 | F72: 0.5 | G72: 0.5
B73: L-Lysine HCL | D73: 0.5 | E73: 0.5 | F73: 1 | G73: 1
B74: L-Threonine | D74: 0 | E74: 0 | F74: 0 | G74: 0
B75: D L-Methionine | D75: 0 | E75: 0 | F75: 0 | G75: 0
B76: Oats - Groats | D76: 474.5 | E76: 485 | F76: 0 | G76: 0
B77: Total Must Equal 1000kg | D77: =SUM(D57:D76) -> 1000 | E77: =SUM(E57:E76) -> 1000 | F77: =SUM(F57:F76) -> 1000 | G77: =SUM(G57:G76) -> 1000
D80: Starter | E80: Grower | F80: Finisher
D81: Ration | E81: Ration | F81: Ration
D82: (kg) | E82: (kg) | F82: (kg)
B83: =B4 -> Wheat | D83: 475 | E83: 200 | F83: 0
B84: Barley | D84: 215 | E84: 597 | F84: 834
B85: Corn | D85: 0 | E85: 0 | F85: 0
B86: Soybean Meal | D86: 175 | E86: 75 | F86: 0
B87: Canola Meal | D87: 0 | E87: 100 | F87: 80
B88: Peas | D88: 100 | E88: 0 | F88: 70
B89: =B10 -> Sow Micro Premix | D89: 0 | E89: 0 | F89: 0
B90: =B11 -> Grower Micro Premix | D90: 3 | E90: 3 | F90: 3
B91: Canola Oil | D91: 10 | E91: 8 | F91: 0
B92: Whey Powder | D92: 0 | E92: 0 | F92: 0
B93: Fish Meal | D93: 0 | E93: 0 | F93: 0
B94: Plasma | D94: 0 | E94: 0 | F94: 0
B95: Limestone | D95: 12 | E95: 10 | F95: 8
B96: Dical (16% Ca-21% P) | D96: 5 | E96: 2 | F96: 1
B97: Salt - 96% | D97: 3.5 | E97: 3.5 | F97: 3.5
B98: Phytase | D98: 0.5 | E98: 0.5 | F98: 0.5
B99: L-Lysine HCL | D99: 1 | E99: 1 | F99: 0
B100: L-Threonine | D100: 0 | E100: 0 | F100: 0
B101: D L-Methionine | D101: 0 | E101: 0 | F101: 0
B102: Oats - Groats | D102: 0 | E102: 0 | F102: 0
B103: Total Must Equal 1000kg | D103: =SUM(D83:D102) -> 1000 | E103: =SUM(E83:E102) -> 1000 | F103: =SUM(F83:F102) -> 1000
B106: Total Feed Ingredients per Sow per Year --- Sow Barn
D107: Dry | E107: Nursing
D108: Sow | E108: Sow | F108: Boar
D109: Ration | E109: Ration | F109: Ration | G109: Total | H109: Total
D110: (kg/sow/year) | E110: (kg/sow/year) | F110: (kg/boar/year) | G110: (kg/sow/year) | H110: (tonnes/year)
B111: =B4 -> Wheat | D111: =((365-'Farrow Finish Worksheet'!$D$11)*'Farrow Input'!$E$32*D32/1000) -> 0 | E111: =('Farrow Input'!$G$16*'Farrow Input'!$G$15*'Farrow Input'!$E$33*E32/1000) -> 97.91082 | F111: =(365*'Farrow Input'!$E$34*(F32/1000)) -> 219 | G111: =(((D111+E111)*'Farrow Input'!$G$13)+(F111*'Farrow Input'!$G$14))/'Farrow Input'!$G$13 -> 99.22482 | H111: =(G111*'Farrow Input'!$E$22)/1000 -> 49.61241
B112: Barley | D112: =((365-'Farrow Finish Worksheet'!$D$11)*'Farrow Input'!$E$32*D33/1000) -> 815.003993 | E112: =('Farrow Input'!$G$16*'Farrow Input'!$G$15*'Farrow Input'!$E$33*E33/1000) -> 151.4354016 | F112: =(365*'Farrow Input'!$E$34*(F33/1000)) -> 655.905 | G112: =(((D112+E112)*'Farrow Input'!$G$13)+(F112*'Farrow Input'!$G$14))/'Farrow Input'!$G$13 -> 970.3748246 | H112: =(G112*'Farrow Input'!$E$22)/1000 -> 485.1874123
B113: Corn | D113: =((365-'Farrow Finish Worksheet'!$D$11)*'Farrow Input'!$E$32*D34/1000) -> 0 | E113: =('Farrow Input'!$G$16*'Farrow Input'!$G$15*'Farrow Input'!$E$33*E34/1000) -> 0 | F113: =(365*'Farrow Input'!$E$34*(F34/1000)) -> 0 | G113: =(((D113+E113)*'Farrow Input'!$G$13)+(F113*'Farrow Input'!$G$14))/'Farrow Input'!$G$13 -> 0 | H113: =(G113*'Farrow Input'!$E$22)/1000 -> 0
B114: Soybean Meal | D114: =((365-'Farrow Finish Worksheet'!$D$11)*'Farrow Input'!$E$32*D35/1000) -> 0 | E114: =('Farrow Input'!$G$16*'Farrow Input'!$G$15*'Farrow Input'!$E$33*E35/1000) -> 64.2947718 | F114: =(365*'Farrow Input'!$E$34*(F35/1000)) -> 0 | G114: =(((D114+E114)*'Farrow Input'!$G$13)+(F114*'Farrow Input'!$G$14))/'Farrow Input'!$G$13 -> 64.2947718 | H114: =(G114*'Farrow Input'!$E$22)/1000 -> 32.1473859
B115: Canola Meal | D115: =((365-'Farrow Finish Worksheet'!$D$11)*'Farrow Input'!$E$32*D36/1000) -> 80.849883 | E115: =('Farrow Input'!$G$16*'Farrow Input'!$G$15*'Farrow Input'!$E$33*E36/1000) -> 0 | F115: =(365*'Farrow Input'!$E$34*(F36/1000)) -> 87.6 | G115: =(((D115+E115)*'Farrow Input'!$G$13)+(F115*'Farrow Input'!$G$14))/'Farrow Input'!$G$13 -> 81.375483 | H115: =(G115*'Farrow Input'!$E$22)/1000 -> 40.6877415
B116: Peas | D116: =((365-'Farrow Finish Worksheet'!$D$11)*'Farrow Input'!$E$32*D37/1000) -> 0 | E116: =('Farrow Input'!$G$16*'Farrow Input'!$G$15*'Farrow Input'!$E$33*E37/1000) -> 0 | F116: =(365*'Farrow Input'!$E$34*(F37/1000)) -> 99.645 | G116: =(((D116+E116)*'Farrow Input'!$G$13)+(F116*'Farrow Input'!$G$14))/'Farrow Input'!$G$13 -> 0.59787 | H116: =(G116*'Farrow Input'!$E$22)/1000 -> 0.298935
B117: =B10 -> Sow Micro Premix | D117: =((365-'Farrow Finish Worksheet'!$D$11)*'Farrow Input'!$E$32*D38/1000) -> 4.646545 | E117: =('Farrow Input'!$G$16*'Farrow Input'!$G$15*'Farrow Input'!$E$33*E38/1000) -> 1.631847 | F117: =(365*'Farrow Input'!$E$34*(F38/1000)) -> 5.475 | G117: =(((D117+E117)*'Farrow Input'!$G$13)+(F117*'Farrow Input'!$G$14))/'Farrow Input'!$G$13 -> 6.311242 | H117: =(G117*'Farrow Input'!$E$22)/1000 -> 3.155621
B118: =B11 -> Grower Micro Premix | D118: =((365-'Farrow Finish Worksheet'!$D$11)*'Farrow Input'!$E$32*D39/1000) -> 0 | E118: =('Farrow Input'!$G$16*'Farrow Input'!$G$15*'Farrow Input'!$E$33*E39/1000) -> 0 | F118: =(365*'Farrow Input'!$E$34*(F39/1000)) -> 0 | G118: =(((D118+E118)*'Farrow Input'!$G$13)+(F118*'Farrow Input'!$G$14))/'Farrow Input'!$G$13 -> 0 | H118: =(G118*'Farrow Input'!$E$22)/1000 -> 0
B119: Canola Oil | D119: =((365-'Farrow Finish Worksheet'!$D$11)*'Farrow Input'!$E$32*D40/1000) -> 0 | E119: =('Farrow Input'!$G$16*'Farrow Input'!$G$15*'Farrow Input'!$E$33*E40/1000) -> 0 | F119: =(365*'Farrow Input'!$E$34*(F40/1000)) -> 0 | G119: =(((D119+E119)*'Farrow Input'!$G$13)+(F119*'Farrow Input'!$G$14))/'Farrow Input'!$G$13 -> 0 | H119: =(G119*'Farrow Input'!$E$22)/1000 -> 0
B120: Whey Powder | D120: =((365-'Farrow Finish Worksheet'!$D$11)*'Farrow Input'!$E$32*D41/1000) -> 0 | E120: =('Farrow Input'!$G$16*'Farrow Input'!$G$15*'Farrow Input'!$E$33*E41/1000) -> 0 | F120: =(365*'Farrow Input'!$E$34*(F41/1000)) -> 0 | G120: =(((D120+E120)*'Farrow Input'!$G$13)+(F120*'Farrow Input'!$G$14))/'Farrow Input'!$G$13 -> 0 | H120: =(G120*'Farrow Input'!$E$22)/1000 -> 0
B121: Fish Meal | D121: =((365-'Farrow Finish Worksheet'!$D$11)*'Farrow Input'!$E$32*D42/1000) -> 0 | E121: =('Farrow Input'!$G$16*'Farrow Input'!$G$15*'Farrow Input'!$E$33*E42/1000) -> 0 | F121: =(365*'Farrow Input'!$E$34*(F42/1000)) -> 0 | G121: =(((D121+E121)*'Farrow Input'!$G$13)+(F121*'Farrow Input'!$G$14))/'Farrow Input'!$G$13 -> 0 | H121: =(G121*'Farrow Input'!$E$22)/1000 -> 0
B122: Plasma | D122: =((365-'Farrow Finish Worksheet'!$D$11)*'Farrow Input'!$E$32*D43/1000) -> 0 | E122: =('Farrow Input'!$G$16*'Farrow Input'!$G$15*'Farrow Input'!$E$33*E43/1000) -> 0 | F122: =(365*'Farrow Input'!$E$34*(F43/1000)) -> 0 | G122: =(((D122+E122)*'Farrow Input'!$G$13)+(F122*'Farrow Input'!$G$14))/'Farrow Input'!$G$13 -> 0 | H122: =(G122*'Farrow Input'!$E$22)/1000 -> 0
B123: Limestone | D123: =((365-'Farrow Finish Worksheet'!$D$11)*'Farrow Input'!$E$32*D44/1000) -> 14.868944 | E123: =('Farrow Input'!$G$16*'Farrow Input'!$G$15*'Farrow Input'!$E$33*E44/1000) -> 5.3850951 | F123: =(365*'Farrow Input'!$E$34*(F44/1000)) -> 15.33 | G123: =(((D123+E123)*'Farrow Input'!$G$13)+(F123*'Farrow Input'!$G$14))/'Farrow Input'!$G$13 -> 20.3460191 | H123: =(G123*'Farrow Input'!$E$22)/1000 -> 10.17300955
B124: Dical (16% Ca-21% P) | D124: =((365-'Farrow Finish Worksheet'!$D$11)*'Farrow Input'!$E$32*D45/1000) -> 10.222399 | E124: =('Farrow Input'!$G$16*'Farrow Input'!$G$15*'Farrow Input'!$E$33*E45/1000) -> 3.5900634 | F124: =(365*'Farrow Input'!$E$34*(F45/1000)) -> 7.665 | G124: =(((D124+E124)*'Farrow Input'!$G$13)+(F124*'Farrow Input'!$G$14))/'Farrow Input'!$G$13 -> 13.8584524 | H124: =(G124*'Farrow Input'!$E$22)/1000 -> 6.9292262
B125: Salt - 96% | D125: =((365-'Farrow Finish Worksheet'!$D$11)*'Farrow Input'!$E$32*D46/1000) -> 3.2525815 | E125: =('Farrow Input'!$G$16*'Farrow Input'!$G$15*'Farrow Input'!$E$33*E46/1000) -> 1.631847 | F125: =(365*'Farrow Input'!$E$34*(F46/1000)) -> 3.8325 | G125: =(((D125+E125)*'Farrow Input'!$G$13)+(F125*'Farrow Input'!$G$14))/'Farrow Input'!$G$13 -> 4.9074235 | H125: =(G125*'Farrow Input'!$E$22)/1000 -> 2.45371175
B126: Phytase | D126: =((365-'Farrow Finish Worksheet'!$D$11)*'Farrow Input'!$E$32*D47/1000) -> 0.4646545 | E126: =('Farrow Input'!$G$16*'Farrow Input'!$G$15*'Farrow Input'!$E$33*E47/1000) -> 0.1631847 | F126: =(365*'Farrow Input'!$E$34*(F47/1000)) -> 0.5475 | G126: =(((D126+E126)*'Farrow Input'!$G$13)+(F126*'Farrow Input'!$G$14))/'Farrow Input'!$G$13 -> 0.6311242 | H126: =(G126*'Farrow Input'!$E$22)/1000 -> 0.3155621
B127: L-Lysine HCL | D127: =((365-'Farrow Finish Worksheet'!$D$11)*'Farrow Input'!$E$32*D48/1000) -> 0 | E127: =('Farrow Input'!$G$16*'Farrow Input'!$G$15*'Farrow Input'!$E$33*E48/1000) -> 0.3263694 | F127: =(365*'Farrow Input'!$E$34*(F48/1000)) -> 0 | G127: =(((D127+E127)*'Farrow Input'!$G$13)+(F127*'Farrow Input'!$G$14))/'Farrow Input'!$G$13 -> 0.3263694 | H127: =(G127*'Farrow Input'!$E$22)/1000 -> 0.1631847
B128: L-Threonine | D128: =((365-'Farrow Finish Worksheet'!$D$11)*'Farrow Input'!$E$32*D49/1000) -> 0 | E128: =('Farrow Input'!$G$16*'Farrow Input'!$G$15*'Farrow Input'!$E$33*E49/1000) -> 0 | F128: =(365*'Farrow Input'!$E$34*(F49/1000)) -> 0 | G128: =(((D128+E128)*'Farrow Input'!$G$13)+(F128*'Farrow Input'!$G$14))/'Farrow Input'!$G$13 -> 0 | H128: =(G128*'Farrow Input'!$E$22)/1000 -> 0
B129: =B23 -> Oats - Groats | D129: =((365-'Farrow Finish Worksheet'!$D$11)*'Farrow Input'!$E$32*D50/1000) -> 0 | E129: =('Farrow Input'!$G$16*'Farrow Input'!$G$15*'Farrow Input'!$E$33*E50/1000) -> 0 | F129: =(365*'Farrow Input'!$E$34*(F50/1000)) -> 0 | G129: =(((D129+E129)*'Farrow Input'!$G$13)+(F129*'Farrow Input'!$G$14))/'Farrow Input'!$G$13 -> 0 | H129: =(G129*'Farrow Input'!$E$22)/1000 -> 0
B130: Total Ration Used (kg/sow/year) | D130: =SUM(D111:D129) -> 929.309 | E130: =SUM(E111:E129) -> 326.3694 | F130: =SUM(F111:F129) -> 1095 | G130: =SUM(G111:G129) -> 1262.2484 | H130: =SUM(H111:H129) -> 631.1242
B132: Total Feed Ingredients per Weanling per Year -- Nursery Barn
D134: =D55 -> Pre Starter 1 | E134: =E55 -> Pre Starter 2 | F134: =F55 -> Starter 1 | G134: =G55 -> Starter 2 | H134: Total | I134: Total
D135: (kg/weanling/yr) | E135: (kg/weanling/yr) | F135: (kg/weanling/yr) | G135: (kg/weanling/yr) | H135: (kg/weanling/yr) | I135: (tonnes/yr)
B136: =B4 -> Wheat | D136: =('Farrow Input'!$E$35*D57/1000) -> 0.06148 | E136: =('Farrow Input'!$E$36*E57/1000) -> 0.39005 | F136: =('Farrow Finish Worksheet'!$D$137*F57/1000) -> 6.48 | G136: =('Farrow Finish Worksheet'!$D$114*G57/1000) -> 3.636 | H136: =SUM(D136:G136) -> 10.56753 | I136: =(H136*'Farrow Input'!$E$27)/1000 -> 148.5477692
B137: Barley | D137: =('Farrow Input'!$E$35*D58/1000) -> 0 | E137: =('Farrow Input'!$E$36*E58/1000) -> 0 | F137: =('Farrow Finish Worksheet'!$D$137*F58/1000) -> 0 | G137: =('Farrow Finish Worksheet'!$D$114*G58/1000) -> 0.585 | H137: =SUM(D137:G137) -> 0.585 | I137: =(H137*'Farrow Input'!$E$27)/1000 -> 8.223345
B138: Corn | D138: =('Farrow Input'!$E$35*D59/1000) -> 0 | E138: =('Farrow Input'!$E$36*E59/1000) -> 0 | F138: =('Farrow Finish Worksheet'!$D$137*F59/1000) -> 3.984 | G138: =('Farrow Finish Worksheet'!$D$114*G59/1000) -> 2.25 | H138: 6.234 | I138: =(H138*'Farrow Input'!$E$27)/1000 -> 87.631338
B139: Soybean Meal | D139: =('Farrow Input'!$E$35*D60/1000) -> 0.0696 | E139: =('Farrow Input'!$E$36*E60/1000) -> 0.377 | F139: =('Farrow Finish Worksheet'!$D$137*F60/1000) -> 3.2 | G139: =('Farrow Finish Worksheet'!$D$114*G60/1000) -> 2.043 | H139: 5.6896 | I139: =(H139*'Farrow Input'!$E$27)/1000 -> 79.9787072
B140: Canola Meal | D140: =('Farrow Input'!$E$35*D61/1000) -> 0 | E140: =('Farrow Input'!$E$36*E61/1000) -> 0 | F140: =('Farrow Finish Worksheet'!$D$137*F61/1000) -> 0 | G140: =('Farrow Finish Worksheet'!$D$114*G61/1000) -> 0 | H140: 0 | I140: =(H140*'Farrow Input'!$E$27)/1000 -> 0
B141: Peas | D141: =('Farrow Input'!$E$35*D62/1000) -> 0 | E141: =('Farrow Input'!$E$36*E62/1000) -> 0 | F141: =('Farrow Finish Worksheet'!$D$137*F62/1000) -> 0 | G141: =('Farrow Finish Worksheet'!$D$114*G62/1000) -> 0 | H141: 0 | I141: =(H141*'Farrow Input'!$E$27)/1000 -> 0
B142: =B10 -> Sow Micro Premix | D142: =('Farrow Input'!$E$35*D63/1000) -> 0.0029 | E142: =('Farrow Input'!$E$36*E63/1000) -> 0.0145 | F142: =('Farrow Finish Worksheet'!$D$137*F63/1000) -> 0.08 | G142: =('Farrow Finish Worksheet'!$D$114*G63/1000) -> 0.045 | H142: 0.1424 | I142: =(H142*'Farrow Input'!$E$27)/1000 -> 2.0017168
B143: =B11 -> Grower Micro Premix | D143: =('Farrow Input'!$E$35*D64/1000) -> 0 | E143: =('Farrow Input'!$E$36*E64/1000) -> 0 | F143: =('Farrow Finish Worksheet'!$D$137*F64/1000) -> 0 | G143: =('Farrow Finish Worksheet'!$D$114*G64/1000) -> 0 | H143: 0 | I143: =(H143*'Farrow Input'!$E$27)/1000 -> 0
B144: Canola Oil | D144: =('Farrow Input'!$E$35*D65/1000) -> 0.01566 | E144: =('Farrow Input'!$E$36*E65/1000) -> 0.0551 | F144: =('Farrow Finish Worksheet'!$D$137*F65/1000) -> 0.176 | G144: =('Farrow Finish Worksheet'!$D$114*G65/1000) -> 0 | H144: 0.24676 | I144: =(H144*'Farrow Input'!$E$27)/1000 -> 3.46870532
B145: Whey Powder | D145: =('Farrow Input'!$E$35*D66/1000) -> 0.07018 | E145: =('Farrow Input'!$E$36*E66/1000) -> 0.3625 | F145: =('Farrow Finish Worksheet'!$D$137*F66/1000) -> 1.12 | G145: =('Farrow Finish Worksheet'!$D$114*G66/1000) -> 0 | H145: 1.55268 | I145: =(H145*'Farrow Input'!$E$27)/1000 -> 21.82602276
B146: Fish Meal | D146: =('Farrow Input'!$E$35*D67/1000) -> 0.03538 | E146: =('Farrow Input'!$E$36*E67/1000) -> 0.2175 | F146: =('Farrow Finish Worksheet'!$D$137*F67/1000) -> 0.64 | G146: =('Farrow Finish Worksheet'!$D$114*G67/1000) -> 0.225 | H146: 1.11788 | I146: =(H146*'Farrow Input'!$E$27)/1000 -> 15.71403916
B147: Plasma | D147: =('Farrow Input'!$E$35*D68/1000) -> 0.03422 | E147: =('Farrow Input'!$E$36*E68/1000) -> 0 | F147: =('Farrow Finish Worksheet'!$D$137*F68/1000) -> 0 | G147: =('Farrow Finish Worksheet'!$D$114*G68/1000) -> 0 | H147: 0.03422 | I147: =(H147*'Farrow Input'!$E$27)/1000 -> 0.48103054
B148: Limestone | D148: =('Farrow Input'!$E$35*D69/1000) -> 0.00725 | E148: =('Farrow Input'!$E$36*E69/1000) -> 0.03625 | F148: =('Farrow Finish Worksheet'!$D$137*F69/1000) -> 0.112 | G148: =('Farrow Finish Worksheet'!$D$114*G69/1000) -> 0.099 | H148: 0.2545 | I148: =(H148*'Farrow Input'!$E$27)/1000 -> 3.5775065
B149: Dical (16% Ca-21% P) | D149: =('Farrow Input'!$E$35*D70/1000) -> 0.0058 | E149: =('Farrow Input'!$E$36*E70/1000) -> 0.029 | F149: =('Farrow Finish Worksheet'!$D$137*F70/1000) -> 0.128 | G149: =('Farrow Finish Worksheet'!$D$114*G70/1000) -> 0.072 | H149: 0.2348 | I149: =(H149*'Farrow Input'!$E$27)/1000 -> 3.3005836
B150: Salt - 96% | D150: =('Farrow Input'!$E$35*D71/1000) -> 0.00203 | E150: =('Farrow Input'!$E$36*E71/1000) -> 0.01015 | F150: =('Farrow Finish Worksheet'!$D$137*F71/1000) -> 0.056 | G150: =('Farrow Finish Worksheet'!$D$114*G71/1000) -> 0.0315 | H150: 0.09968 | I150: =(H150*'Farrow Input'!$E$27)/1000 -> 1.40120176
B151: Phytase | D151: =('Farrow Input'!$E$35*D72/1000) -> 0 | E151: =('Farrow Input'!$E$36*E72/1000) -> 0 | F151: =('Farrow Finish Worksheet'!$D$137*F72/1000) -> 0.008 | G151: =('Farrow Finish Worksheet'!$D$114*G72/1000) -> 0.0045 | H151: 0.0125 | I151: =(H151*'Farrow Input'!$E$27)/1000 -> 0.1757125
B152: L-Lysine HCL | D152: =('Farrow Input'!$E$35*D73/1000) -> 0.00029 | E152: =('Farrow Input'!$E$36*E73/1000) -> 0.00145 | F152: =('Farrow Finish Worksheet'!$D$137*F73/1000) -> 0.016 | G152: =('Farrow Finish Worksheet'!$D$114*G73/1000) -> 0.009 | H152: 0.02674 | I152: =(H152*'Farrow Input'!$E$27)/1000 -> 0.37588418
B153: L-Threonine | D153: =('Farrow Input'!$E$35*D74/1000) -> 0 | E153: =('Farrow Input'!$E$36*E74/1000) -> 0 | F153: =('Farrow Finish Worksheet'!$D$137*F74/1000) -> 0 | G153: =('Farrow Finish Worksheet'!$D$114*G74/1000) -> 0 | H153: 0 | I153: =(H153*'Farrow Input'!$E$27)/1000 -> 0
B154: =B23 -> Oats - Groats | D154: =('Farrow Input'!$E$35*D75/1000) -> 0 | E154: =('Farrow Input'!$E$36*E75/1000) -> 0 | F154: =('Farrow Finish Worksheet'!$D$137*F75/1000) -> 0 | G154: =('Farrow Finish Worksheet'!$D$114*G75/1000) -> 0 | H154: 0 | I154: =(H154*'Farrow Input'!$E$27)/1000 -> 0
B155: Total Ration Used (kgs) | D155: =SUM(D136:D154) -> 0.30479 | E155: 1.4935 | F155: 16 | G155: 9 | H155: 26.79829 | I155: 376.7035625
B158: Total Feed Ingredients per Feeder Pig per Year -- Grower-Finisher Barn
D159: =D80 -> Starter | E159: Grower | F159: Finisher
D160: Ration | E160: Ration | F160: Ration | G160: Total | H160: Total
D161: (kg/feeder/yr) | E161: (kg/feeder/yr) | F161: (kg/feeder/yr) | G161: (kg/feeder/yr) | H161: (tonnes/yr)
B162: =B4 -> Wheat | D162: =('Farrow Finish Worksheet'!$D$158*D83/1000) -> 12.9675 | E162: =('Farrow Finish Worksheet'!$D$173*E83/1000) -> 33 | F162: =('Farrow Finish Worksheet'!$D$188*F83/1000) -> 0 | G162: =SUM(D162:F162) -> 45.9675 | H162: =(G162*'Farrow Input'!$E$29)/1000 -> 630.398295
B163: Barley | D163: =('Farrow Finish Worksheet'!$D$158*D84/1000) -> 5.8695 | E163: =('Farrow Finish Worksheet'!$D$173*E84/1000) -> 98.505 | F163: =('Farrow Finish Worksheet'!$D$188*F84/1000) -> 75.894 | G163: 180.2685 | H163: =(G163*'Farrow Input'!$E$29)/1000 -> 2472.202209
B164: Corn | D164: =('Farrow Finish Worksheet'!$D$158*D85/1000) -> 0 | E164: =('Farrow Finish Worksheet'!$D$173*E85/1000) -> 0 | F164: =('Farrow Finish Worksheet'!$D$188*F85/1000) -> 0 | G164: 0 | H164: =(G164*'Farrow Input'!$E$29)/1000 -> 0
B165: Soybean Meal | D165: =('Farrow Finish Worksheet'!$D$158*D86/1000) -> 4.7775 | E165: =('Farrow Finish Worksheet'!$D$173*E86/1000) -> 12.375 | F165: =('Farrow Finish Worksheet'!$D$188*F86/1000) -> 0 | G165: 17.1525 | H165: =(G165*'Farrow Input'!$E$29)/1000 -> 235.229385
B166: Canola Meal | D166: =('Farrow Finish Worksheet'!$D$158*D87/1000) -> 0 | E166: =('Farrow Finish Worksheet'!$D$173*E87/1000) -> 16.5 | F166: =('Farrow Finish Worksheet'!$D$188*F87/1000) -> 7.28 | G166: 23.78 | H166: =(G166*'Farrow Input'!$E$29)/1000 -> 326.11892
B167: Peas | D167: =('Farrow Finish Worksheet'!$D$158*D88/1000) -> 2.73 | E167: =('Farrow Finish Worksheet'!$D$173*E88/1000) -> 0 | F167: =('Farrow Finish Worksheet'!$D$188*F88/1000) -> 6.37 | G167: 9.1 | H167: =(G167*'Farrow Input'!$E$29)/1000 -> 124.7974
B168: =B10 -> Sow Micro Premix | D168: =('Farrow Finish Worksheet'!$D$158*D89/1000) -> 0 | E168: =('Farrow Finish Worksheet'!$D$173*E89/1000) -> 0 | F168: =('Farrow Finish Worksheet'!$D$188*F89/1000) -> 0 | G168: 0 | H168: =(G168*'Farrow Input'!$E$29)/1000 -> 0
B169: =B11 -> Grower Micro Premix | D169: =('Farrow Finish Worksheet'!$D$158*D90/1000) -> 0.0819 | E169: =('Farrow Finish Worksheet'!$D$173*E90/1000) -> 0.495 | F169: =('Farrow Finish Worksheet'!$D$188*F90/1000) -> 0.273 | G169: 0.8499 | H169: =(G169*'Farrow Input'!$E$29)/1000 -> 11.6555286
B170: Canola Oil | D170: =('Farrow Finish Worksheet'!$D$158*D91/1000) -> 0.273 | E170: =('Farrow Finish Worksheet'!$D$173*E91/1000) -> 1.32 | F170: =('Farrow Finish Worksheet'!$D$188*F91/1000) -> 0 | G170: 1.593 | H170: =(G170*'Farrow Input'!$E$29)/1000 -> 21.846402
B171: Whey Powder | D171: =('Farrow Finish Worksheet'!$D$158*D92/1000) -> 0 | E171: =('Farrow Finish Worksheet'!$D$173*E92/1000) -> 0 | F171: =('Farrow Finish Worksheet'!$D$188*F92/1000) -> 0 | G171: 0 | H171: =(G171*'Farrow Input'!$E$29)/1000 -> 0
B172: Fish Meal | D172: =('Farrow Finish Worksheet'!$D$158*D93/1000) -> 0 | E172: =('Farrow Finish Worksheet'!$D$173*E93/1000) -> 0 | F172: =('Farrow Finish Worksheet'!$D$188*F93/1000) -> 0 | G172: 0 | H172: =(G172*'Farrow Input'!$E$29)/1000 -> 0
B173: Plasma | D173: =('Farrow Finish Worksheet'!$D$158*D94/1000) -> 0 | E173: =('Farrow Finish Worksheet'!$D$173*E94/1000) -> 0 | F173: =('Farrow Finish Worksheet'!$D$188*F94/1000) -> 0 | G173: 0 | H173: =(G173*'Farrow Input'!$E$29)/1000 -> 0
B174: Limestone | D174: =('Farrow Finish Worksheet'!$D$158*D95/1000) -> 0.3276 | E174: =('Farrow Finish Worksheet'!$D$173*E95/1000) -> 1.65 | F174: =('Farrow Finish Worksheet'!$D$188*F95/1000) -> 0.728 | G174: 2.7056 | H174: =(G174*'Farrow Input'!$E$29)/1000 -> 37.1045984
B175: Dical (16% Ca-21% P) | D175: =('Farrow Finish Worksheet'!$D$158*D96/1000) -> 0.1365 | E175: =('Farrow Finish Worksheet'!$D$173*E96/1000) -> 0.33 | F175: =('Farrow Finish Worksheet'!$D$188*F96/1000) -> 0.091 | G175: 0.5575 | H175: =(G175*'Farrow Input'!$E$29)/1000 -> 7.645555
B176: Salt - 96% | D176: =('Farrow Finish Worksheet'!$D$158*D97/1000) -> 0.09555 | E176: =('Farrow Finish Worksheet'!$D$173*E97/1000) -> 0.5775 | F176: =('Farrow Finish Worksheet'!$D$188*F97/1000) -> 0.3185 | G176: 0.99155 | H176: =(G176*'Farrow Input'!$E$29)/1000 -> 13.5981167
B177: Phytase | D177: =('Farrow Finish Worksheet'!$D$158*D98/1000) -> 0.01365 | E177: =('Farrow Finish Worksheet'!$D$173*E98/1000) -> 0.0825 | F177: =('Farrow Finish Worksheet'!$D$188*F98/1000) -> 0.0455 | G177: 0.14165 | H177: =(G177*'Farrow Input'!$E$29)/1000 -> 1.9425881
B178: L-Lysine HCL | D178: =('Farrow Finish Worksheet'!$D$158*D99/1000) -> 0.0273 | E178: =('Farrow Finish Worksheet'!$D$173*E99/1000) -> 0.165 | F178: =('Farrow Finish Worksheet'!$D$188*F99/1000) -> 0 | G178: 0.1923 | H178: =(G178*'Farrow Input'!$E$29)/1000 -> 2.6372022
B179: L-Threonine | D179: =('Farrow Finish Worksheet'!$D$158*D100/1000) -> 0 | E179: =('Farrow Finish Worksheet'!$D$173*E100/1000) -> 0 | F179: =('Farrow Finish Worksheet'!$D$188*F100/1000) -> 0 | G179: 0 | H179: =(G179*'Farrow Input'!$E$29)/1000 -> 0
B180: D L-Methionine | D180: =('Farrow Finish Worksheet'!$D$158*D101/1000) -> 0 | E180: =('Farrow Finish Worksheet'!$D$173*E101/1000) -> 0 | F180: =('Farrow Finish Worksheet'!$D$188*F101/1000) -> 0 | G180: 0 | H180: =(G180*'Farrow Input'!$E$29)/1000 -> 0
B181: Oats - Groats | D181: =('Farrow Finish Worksheet'!$D$158*D102/1000) -> 0 | E181: =('Farrow Finish Worksheet'!$D$173*E102/1000) -> 0 | F181: =('Farrow Finish Worksheet'!$D$188*F102/1000) -> 0 | G181: 0 | H181: =(G181*'Farrow Input'!$E$29)/1000 -> 0
B182: Total Ration Used (kgs) | D182: =SUM(D162:D181) -> 27.3 | E182: =SUM(E162:E181) -> 165 | F182: =SUM(F162:F181) -> 91 | G182: =SUM(G162:G181) -> 283.3 | H182: =SUM(H162:H181) -> 3885.1762
B185: Summary of Feed Ingredients Used For A Farrow-Weanling Operation
B186: Number of sows | D186: ='Farrow Input'!G13 -> 500
B187: Weanlings sold/sow | D187: ='Farrow Input'!F29 -> 27.43
D188: Total | E188: Total | F188: Total
D189: per Year | E189: per Month | F189: per Sow
D190: (tonnes) | E190: (tonnes) | F190: (kg/sow/year)
B191: =B4 -> Wheat | D191: =($D$186*G111/1000)+($D$187*$D$186*H136/1000) -> 194.546084 | E191: =D191/12 -> 16.21217366 | F191: =D191/$D$186*1000 -> 389.0921679
B192: Barley | D192: 493.2106873 | E192: 41.10089061 | F192: 986.4213746
B193: Corn | D193: 85.49931 | E193: 7.1249425 | F193: 170.99862
B194: Soybean Meal | D194: 110.1802499 | E194: 9.181687492 | F194: 220.3604998
B195: Canola Meal | D195: 40.6877415 | E195: 3.390645125 | F195: 81.375483
B196: Peas | D196: 0.298935 | E196: 0.02491125 | F196: 0.59787
B197: =B10 -> Sow Micro Premix | D197: 5.108637 | E197: 0.42571975 | F197: 10.217274
B198: =B11 -> Grower Micro Premix | D198: 0 | E198: 0 | F198: 0
B199: Canola Oil | D199: 3.3843134 | E199: 0.2820261167 | F199: 6.7686268
B200: Whey Powder | D200: 21.2950062 | E200: 1.77458385 | F200: 42.5900124
B201: Fish Meal | D201: 15.3317242 | E201: 1.277643683 | F201: 30.6634484
B202: Plasma | D202: 0.4693273 | E202: 0.03911060833 | F202: 0.9386546
B203: Limestone | D203: 13.66347705 | E203: 1.138623088 | F203: 27.3269541
B204: Dical (16% Ca-21% P) | D204: 10.1495082 | E204: 0.84579235 | F204: 20.2990164
B205: Salt - 96% | D205: 3.82082295 | E205: 0.3184019125 | F205: 7.6416459
B206: Phytase | D206: 0.4869996 | E206: 0.0405833 | F206: 0.9739992
B207: L-Lysine HCL | D207: 0.5299238 | E207: 0.04416031667 | F207: 1.0598476
B208: L-Threonine | D208: 0 | E208: 0 | F208: 0
B209: D L-Methionine | D209: 0 | E209: 0 | F209: 0
B210: Oats - Groats | D210: 998.6627473 | E210: 83.22189561 | F210: 1997.325495
B211: Total Ration Used (tonnes) | D211: =SUM(D191:D210) -> 1997.325495 | E211: =SUM(E191:E210) -> 166.4437912 | F211: =SUM(F191:F210) -> 3994.650989
B214: Summary of Feed Ingredients Used For A Grower-Finisher Operation
B216: Total Market Hogs Sold | D216: ='Farrow Input'!F79 -> 13001.8212
D217: Total | E217: Total | F217: Total
... 23 more rows

Sheet Feed-Summary
A2: Feed Requirement and Cost Summary
D3: Amount | F3: Price | H3: Ration Cost
D4: (kg) | F4: ($ /tonne) | H4: ($ /tonne) | J4: Your Cost
A5: Sow Gestation
A6: ='Feed Input'!B4 -> Wheat | D6: =IF('Feed Input'!D32=0," ",'Feed Input'!D32) ->  | F6: =IF('Feed Input'!D32=0," ",'Feed Input'!E4) ->  | H6: =IF('Feed Input'!D32=0," ",ROUND((D6/1000)*F6,2)) -> 
A7: ='Feed Input'!B5 -> Barley | D7: =IF('Feed Input'!D33=0," ",'Feed Input'!D33) -> 877 | F7: =IF('Feed Input'!D33=0," ",'Feed Input'!E5) -> 320 | H7: =IF('Feed Input'!D33=0," ",ROUND((D7/1000)*F7,2)) -> 280.64
A8: ='Feed Input'!B6 -> Corn | D8: =IF('Feed Input'!D34=0," ",'Feed Input'!D34) ->  | F8: =IF('Feed Input'!D34=0," ",'Feed Input'!E6) ->  | H8: =IF('Feed Input'!D34=0," ",ROUND((D8/1000)*F8,2)) -> 
A9: ='Feed Input'!B7 -> Soybean Meal | D9: =IF('Feed Input'!D35=0," ",'Feed Input'!D35) ->  | F9: =IF('Feed Input'!D35=0," ",'Feed Input'!E7) ->  | H9: =IF('Feed Input'!D35=0," ",ROUND((D9/1000)*F9,2)) -> 
A10: ='Feed Input'!B8 -> Canola Meal | D10: =IF('Feed Input'!D36=0," ",'Feed Input'!D36) -> 87 | F10: =IF('Feed Input'!D36=0," ",'Feed Input'!E8) -> 425 | H10: =IF('Feed Input'!D36=0," ",ROUND((D10/1000)*F10,2)) -> 36.98
A11: ='Feed Input'!B9 -> Peas | D11: =IF('Feed Input'!D37=0," ",'Feed Input'!D37) ->  | F11: =IF('Feed Input'!D37=0," ",'Feed Input'!E9) ->  | H11: =IF('Feed Input'!D37=0," ",ROUND((D11/1000)*F11,2)) -> 
A12: ='Feed Input'!B10 -> Sow Micro Premix | D12: =IF('Feed Input'!D38=0," ",'Feed Input'!D38) -> 5 | F12: =IF('Feed Input'!D38=0," ",'Feed Input'!E10) -> 4000 | H12: =IF('Feed Input'!D38=0," ",ROUND((D12/1000)*F12,2)) -> 20
A13: ='Feed Input'!B11 -> Grower Micro Premix | D13: =IF('Feed Input'!D39=0," ",'Feed Input'!D39) ->  | F13: =IF('Feed Input'!D39=0," ",'Feed Input'!E11) ->  | H13: =IF('Feed Input'!D39=0," ",ROUND((D13/1000)*F13,2)) -> 
A14: ='Feed Input'!B12 -> Canola Oil | D14: =IF('Feed Input'!D40=0," ",'Feed Input'!D40) ->  | F14: =IF('Feed Input'!D40=0," ",'Feed Input'!E12) ->  | H14: =IF('Feed Input'!D40=0," ",ROUND((D14/1000)*F14,2)) -> 
A15: ='Feed Input'!B13 -> Whey Powder | D15: =IF('Feed Input'!D41=0," ",'Feed Input'!D41) ->  | F15: =IF('Feed Input'!D41=0," ",'Feed Input'!E13) ->  | H15: =IF('Feed Input'!D41=0," ",ROUND((D15/1000)*F15,2)) -> 
A16: ='Feed Input'!B14 -> Fish Meal | D16: =IF('Feed Input'!D42=0," ",'Feed Input'!D42) ->  | F16: =IF('Feed Input'!D42=0," ",'Feed Input'!E14) ->  | H16: =IF('Feed Input'!D42=0," ",ROUND((D16/1000)*F16,2)) -> 
A17: ='Feed Input'!B15 -> Plasma | D17: =IF('Feed Input'!D43=0," ",'Feed Input'!D43) ->  | F17: =IF('Feed Input'!D43=0," ",'Feed Input'!E15) ->  | H17: =IF('Feed Input'!D43=0," ",ROUND((D17/1000)*F17,2)) -> 
A18: ='Feed Input'!B16 -> Limestone | D18: =IF('Feed Input'!D44=0," ",'Feed Input'!D44) -> 16 | F18: =IF('Feed Input'!D44=0," ",'Feed Input'!E16) -> 203.95 | H18: =IF('Feed Input'!D44=0," ",ROUND((D18/1000)*F18,2)) -> 3.26
A19: ='Feed Input'!B17 -> Dical (16% Ca-21% P) | D19: =IF('Feed Input'!D45=0," ",'Feed Input'!D45) -> 11 | F19: =IF('Feed Input'!D45=0," ",'Feed Input'!E17) -> 1544.23 | H19: =IF('Feed Input'!D45=0," ",ROUND((D19/1000)*F19,2)) -> 16.99
A20: ='Feed Input'!B18 -> Salt - 96% | D20: =IF('Feed Input'!D46=0," ",'Feed Input'!D46) -> 3.5 | F20: =IF('Feed Input'!D46=0," ",'Feed Input'!E18) -> 261.9 | H20: =IF('Feed Input'!D46=0," ",ROUND((D20/1000)*F20,2)) -> 0.92
A21: ='Feed Input'!B19 -> Phytase | D21: =IF('Feed Input'!D47=0," ",'Feed Input'!D47) -> 0.5 | F21: =IF('Feed Input'!D47=0," ",'Feed Input'!E19) -> 14500 | H21: =IF('Feed Input'!D47=0," ",ROUND((D21/1000)*F21,2)) -> 7.25
A22: ='Feed Input'!B20 -> L-Lysine HCL | D22: =IF('Feed Input'!D48=0," ",'Feed Input'!D48) ->  | F22: =IF('Feed Input'!D48=0," ",'Feed Input'!E20) ->  | H22: =IF('Feed Input'!D48=0," ",ROUND((D22/1000)*F22,2)) -> 
A23: ='Feed Input'!B21 -> L-Threonine | D23: =IF('Feed Input'!D49=0," ",'Feed Input'!D49) ->  | F23: =IF('Feed Input'!D49=0," ",'Feed Input'!E21) ->  | H23: =IF('Feed Input'!D49=0," ",ROUND((D23/1000)*F23,2)) -> 
A24: ='Feed Input'!B22 -> D L-Methionine | D24: =IF('Feed Input'!D50=0," ",'Feed Input'!D50) ->  | F24: =IF('Feed Input'!D50=0," ",'Feed Input'!E22) ->  | H24: =IF('Feed Input'!D50=0," ",ROUND((D24/1000)*F24,2)) -> 
A25: ='Feed Input'!B23 -> Oats - Groats | D25: =IF('Feed Input'!D51=0," ",'Feed Input'!D51) ->  | F25: =IF('Feed Input'!D51=0," ",'Feed Input'!E23) ->  | H25: =IF('Feed Input'!D51=0," ",ROUND((D25/1000)*F25,2)) -> 
A26: Total Sow Gestation: | D26: =SUM(D6:D25) -> 1000 | H26: =SUM(H6:H25) -> 366.04
A27: Adjusted For Weight Loss | F27: ='Feed Input'!$E$26 -> 1.25 | G27: % | H27: =H26+(F27/100*H26) -> 370.6155
A28: Plus Processing Cost | F28: ='Feed Input'!$E$25 -> 10 | H28: =IF(H27=0,0,H27+F28) -> 380.6155
A29: Plus Labour Cost | F29: ='Feed Input'!$E$27 -> 10 | H29: =H28+F29 -> 390.6155
A31: Sow Lactation
A32: ='Feed Input'!B4 -> Wheat | D32: =IF('Feed Input'!E32=0," ",'Feed Input'!E32) -> 300 | F32: =IF('Feed Input'!E32=0," ",'Feed Input'!E4) -> 370 | H32: =IF('Feed Input'!E32=0," ",ROUND((D32/1000)*F32,2)) -> 111
A33: ='Feed Input'!B5 -> Barley | D33: =IF('Feed Input'!E33=0," ",'Feed Input'!E33) -> 464 | F33: =IF('Feed Input'!E33=0," ",'Feed Input'!E5) -> 320 | H33: =IF('Feed Input'!E33=0," ",ROUND((D33/1000)*F33,2)) -> 148.48
A34: ='Feed Input'!B6 -> Corn | D34: =IF('Feed Input'!E34=0," ",'Feed Input'!E34) ->  | F34: =IF('Feed Input'!E34=0," ",'Feed Input'!E6) ->  | H34: =IF('Feed Input'!E34=0," ",ROUND((D34/1000)*F34,2)) -> 
A35: ='Feed Input'!B7 -> Soybean Meal | D35: =IF('Feed Input'!E35=0," ",'Feed Input'!E35) -> 197 | F35: =IF('Feed Input'!E35=0," ",'Feed Input'!E7) -> 665 | H35: =IF('Feed Input'!E35=0," ",ROUND((D35/1000)*F35,2)) -> 131.01
A36: ='Feed Input'!B8 -> Canola Meal | D36: =IF('Feed Input'!E36=0," ",'Feed Input'!E36) ->  | F36: =IF('Feed Input'!E36=0," ",'Feed Input'!E8) ->  | H36: =IF('Feed Input'!E36=0," ",ROUND((D36/1000)*F36,2)) -> 
A37: ='Feed Input'!B9 -> Peas | D37: =IF('Feed Input'!E37=0," ",'Feed Input'!E37) ->  | F37: =IF('Feed Input'!E37=0," ",'Feed Input'!E9) ->  | H37: =IF('Feed Input'!E37=0," ",ROUND((D37/1000)*F37,2)) -> 
A38: ='Feed Input'!B10 -> Sow Micro Premix | D38: =IF('Feed Input'!E38=0," ",'Feed Input'!E38) -> 5 | F38: =IF('Feed Input'!E38=0," ",'Feed Input'!E10) -> 4000 | H38: =IF('Feed Input'!E38=0," ",ROUND((D38/1000)*F38,2)) -> 20
A39: ='Feed Input'!B11 -> Grower Micro Premix | D39: =IF('Feed Input'!E39=0," ",'Feed Input'!E39) ->  | F39: =IF('Feed Input'!E39=0," ",'Feed Input'!E11) ->  | H39: =IF('Feed Input'!E39=0," ",ROUND((D39/1000)*F39,2)) -> 
A40: ='Feed Input'!B12 -> Canola Oil | D40: =IF('Feed Input'!E40=0," ",'Feed Input'!E40) ->  | F40: =IF('Feed Input'!E40=0," ",'Feed Input'!E12) ->  | H40: =IF('Feed Input'!E40=0," ",ROUND((D40/1000)*F40,2)) -> 
A41: ='Feed Input'!B13 -> Whey Powder | D41: =IF('Feed Input'!E41=0," ",'Feed Input'!E41) ->  | F41: =IF('Feed Input'!E41=0," ",'Feed Input'!E13) ->  | H41: =IF('Feed Input'!E41=0," ",ROUND((D41/1000)*F41,2)) -> 
A42: ='Feed Input'!B14 -> Fish Meal | D42: =IF('Feed Input'!E42=0," ",'Feed Input'!E42) ->  | F42: =IF('Feed Input'!E42=0," ",'Feed Input'!E14) ->  | H42: =IF('Feed Input'!E42=0," ",ROUND((D42/1000)*F42,2)) -> 
A43: ='Feed Input'!B15 -> Plasma | D43: =IF('Feed Input'!E43=0," ",'Feed Input'!E43) ->  | F43: =IF('Feed Input'!E43=0," ",'Feed Input'!E15) ->  | H43: =IF('Feed Input'!E43=0," ",ROUND((D43/1000)*F43,2)) -> 
A44: ='Feed Input'!B16 -> Limestone | D44: =IF('Feed Input'!E44=0," ",'Feed Input'!E44) -> 16.5 | F44: =IF('Feed Input'!E44=0," ",'Feed Input'!E16) -> 203.95 | H44: =IF('Feed Input'!E44=0," ",ROUND((D44/1000)*F44,2)) -> 3.37
A45: ='Feed Input'!B17 -> Dical (16% Ca-21% P) | D45: =IF('Feed Input'!E45=0," ",'Feed Input'!E45) -> 11 | F45: =IF('Feed Input'!E45=0," ",'Feed Input'!E17) -> 1544.23 | H45: =IF('Feed Input'!E45=0," ",ROUND((D45/1000)*F45,2)) -> 16.99
A46: ='Feed Input'!B18 -> Salt - 96% | D46: =IF('Feed Input'!E46=0," ",'Feed Input'!E46) -> 5 | F46: =IF('Feed Input'!E46=0," ",'Feed Input'!E18) -> 261.9 | H46: =IF('Feed Input'!E46=0," ",ROUND((D46/1000)*F46,2)) -> 1.31
A47: ='Feed Input'!B19 -> Phytase | D47: =IF('Feed Input'!E47=0," ",'Feed Input'!E47) -> 0.5 | F47: =IF('Feed Input'!E47=0," ",'Feed Input'!E19) -> 14500 | H47: =IF('Feed Input'!E47=0," ",ROUND((D47/1000)*F47,2)) -> 7.25
A48: ='Feed Input'!B20 -> L-Lysine HCL | D48: =IF('Feed Input'!E48=0," ",'Feed Input'!E48) -> 1 | F48: =IF('Feed Input'!E48=0," ",'Feed Input'!E20) -> 2248.5 | H48: =IF('Feed Input'!E48=0," ",ROUND((D48/1000)*F48,2)) -> 2.25
A49: ='Feed Input'!B21 -> L-Threonine | D49: =IF('Feed Input'!E49=0," ",'Feed Input'!E49) ->  | F49: =IF('Feed Input'!E49=0," ",'Feed Input'!E21) ->  | H49: =IF('Feed Input'!E49=0," ",ROUND((D49/1000)*F49,2)) -> 
A50: ='Feed Input'!B22 -> D L-Methionine | D50: =IF('Feed Input'!E50=0," ",'Feed Input'!E50) ->  | F50: =IF('Feed Input'!E50=0," ",'Feed Input'!E22) ->  | H50: =IF('Feed Input'!E50=0," ",ROUND((D50/1000)*F50,2)) -> 
A51: ='Feed Input'!B23 -> Oats - Groats | D51: =IF('Feed Input'!E51=0," ",'Feed Input'!E51) ->  | F51: =IF('Feed Input'!E51=0," ",'Feed Input'!E23) ->  | H51: =IF('Feed Input'!E51=0," ",ROUND((D51/1000)*F51,2)) -> 
A52: Total Sow Lactation: | D52: =SUM(D32:D51) -> 1000 | E52: kg | H52: =SUM(H32:H51) -> 441.66
A53: Adjusted For Weight Loss | F53: ='Feed Input'!$E$26 -> 1.25 | G53: % | H53: =H52+(F53*H52/100) -> 447.18075
A54: Plus Processing Cost | F54: ='Feed Input'!$E$25 -> 10 | H54: =IF(H53=0,0,H53+F54) -> 457.18075
A55: Plus Labour Cost | F55: ='Feed Input'!$E$27 -> 10 | H55: =H54+F55 -> 467.18075
A57: Boar Ration:
A58: ='Feed Input'!B4 -> Wheat | D58: =IF('Feed Input'!F32=0," ",'Feed Input'!F32) -> 200 | F58: =IF('Feed Input'!F32=0," ",'Feed Input'!E4) -> 370 | H58: =IF('Feed Input'!F32=0," ",ROUND((D58/1000)*F58,2)) -> 74
A59: ='Feed Input'!B5 -> Barley | D59: =IF('Feed Input'!F33=0," ",'Feed Input'!F33) -> 599 | F59: =IF('Feed Input'!F33=0," ",'Feed Input'!E5) -> 320 | H59: =IF('Feed Input'!F33=0," ",ROUND((D59/1000)*F59,2)) -> 191.68
A60: ='Feed Input'!B6 -> Corn | D60: =IF('Feed Input'!F34=0," ",'Feed Input'!F34) ->  | F60: =IF('Feed Input'!F34=0," ",'Feed Input'!E6) ->  | H60: =IF('Feed Input'!F34=0," ",ROUND((D60/1000)*F60,2)) -> 
A61: ='Feed Input'!B7 -> Soybean Meal | D61: =IF('Feed Input'!F35=0," ",'Feed Input'!F35) ->  | F61: =IF('Feed Input'!F35=0," ",'Feed Input'!E7) ->  | H61: =IF('Feed Input'!F35=0," ",ROUND((D61/1000)*F61,2)) -> 
A62: ='Feed Input'!B8 -> Canola Meal | D62: =IF('Feed Input'!F36=0," ",'Feed Input'!F36) -> 80 | F62: =IF('Feed Input'!F36=0," ",'Feed Input'!E8) -> 425 | H62: =IF('Feed Input'!F36=0," ",ROUND((D62/1000)*F62,2)) -> 34
A63: ='Feed Input'!B9 -> Peas | D63: =IF('Feed Input'!F37=0," ",'Feed Input'!F37) -> 91 | F63: =IF('Feed Input'!F37=0," ",'Feed Input'!E9) -> 390 | H63: =IF('Feed Input'!F37=0," ",ROUND((D63/1000)*F63,2)) -> 35.49
A64: ='Feed Input'!B10 -> Sow Micro Premix | D64: =IF('Feed Input'!F38=0," ",'Feed Input'!F38) -> 5 | F64: =IF('Feed Input'!F38=0," ",'Feed Input'!E10) -> 4000 | H64: =IF('Feed Input'!F38=0," ",ROUND((D64/1000)*F64,2)) -> 20
A65: ='Feed Input'!B11 -> Grower Micro Premix | D65: =IF('Feed Input'!F39=0," ",'Feed Input'!F39) ->  | F65: =IF('Feed Input'!F39=0," ",'Feed Input'!E11) ->  | H65: =IF('Feed Input'!F39=0," ",ROUND((D65/1000)*F65,2)) -> 
A66: ='Feed Input'!B12 -> Canola Oil | D66: =IF('Feed Input'!F40=0," ",'Feed Input'!F40) ->  | F66: =IF('Feed Input'!F40=0," ",'Feed Input'!E12) ->  | H66: =IF('Feed Input'!F40=0," ",ROUND((D66/1000)*F66,2)) -> 
A67: ='Feed Input'!B13 -> Whey Powder | D67: =IF('Feed Input'!F41=0," ",'Feed Input'!F41) ->  | F67: =IF('Feed Input'!F41=0," ",'Feed Input'!E13) ->  | H67: =IF('Feed Input'!F41=0," ",ROUND((D67/1000)*F67,2)) -> 
A68: ='Feed Input'!B14 -> Fish Meal | D68: =IF('Feed Input'!F42=0," ",'Feed Input'!F42) ->  | F68: =IF('Feed Input'!F42=0," ",'Feed Input'!E14) ->  | H68: =IF('Feed Input'!F42=0," ",ROUND((D68/1000)*F68,2)) -> 
A69: ='Feed Input'!B15 -> Plasma | D69: =IF('Feed Input'!F43=0," ",'Feed Input'!F43) ->  | F69: =IF('Feed Input'!F43=0," ",'Feed Input'!E15) ->  | H69: =IF('Feed Input'!F43=0," ",ROUND((D69/1000)*F69,2)) -> 
A70: ='Feed Input'!B16 -> Limestone | D70: =IF('Feed Input'!F44=0," ",'Feed Input'!F44) -> 14 | F70: =IF('Feed Input'!F44=0," ",'Feed Input'!E16) -> 203.95 | H70: =IF('Feed Input'!F44=0," ",ROUND((D70/1000)*F70,2)) -> 2.86
A71: ='Feed Input'!B17 -> Dical (16% Ca-21% P) | D71: =IF('Feed Input'!F45=0," ",'Feed Input'!F45) -> 7 | F71: =IF('Feed Input'!F45=0," ",'Feed Input'!E17) -> 1544.23 | H71: =IF('Feed Input'!F45=0," ",ROUND((D71/1000)*F71,2)) -> 10.81
A72: ='Feed Input'!B18 -> Salt - 96% | D72: =IF('Feed Input'!F46=0," ",'Feed Input'!F46) -> 3.5 | F72: =IF('Feed Input'!F46=0," ",'Feed Input'!E18) -> 261.9 | H72: =IF('Feed Input'!F46=0," ",ROUND((D72/1000)*F72,2)) -> 0.92
A73: ='Feed Input'!B19 -> Phytase | D73: =IF('Feed Input'!F47=0," ",'Feed Input'!F47) -> 0.5 | F73: =IF('Feed Input'!F47=0," ",'Feed Input'!E19) -> 14500 | H73: =IF('Feed Input'!F47=0," ",ROUND((D73/1000)*F73,2)) -> 7.25
A74: ='Feed Input'!B20 -> L-Lysine HCL | D74: =IF('Feed Input'!F48=0," ",'Feed Input'!F48) ->  | F74: =IF('Feed Input'!F48=0," ",'Feed Input'!E20) ->  | H74: =IF('Feed Input'!F48=0," ",ROUND((D74/1000)*F74,2)) -> 
A75: ='Feed Input'!B21 -> L-Threonine | D75: =IF('Feed Input'!F49=0," ",'Feed Input'!F49) ->  | F75: =IF('Feed Input'!F49=0," ",'Feed Input'!E21) ->  | H75: =IF('Feed Input'!F49=0," ",ROUND((D75/1000)*F75,2)) -> 
A76: ='Feed Input'!B22 -> D L-Methionine | D76: =IF('Feed Input'!F50=0," ",'Feed Input'!F50) ->  | F76: =IF('Feed Input'!F50=0," ",'Feed Input'!E22) ->  | H76: =IF('Feed Input'!F50=0," ",ROUND((D76/1000)*F76,2)) -> 
A77: ='Feed Input'!B23 -> Oats - Groats | D77: =IF('Feed Input'!F51=0," ",'Feed Input'!F51) ->  | F77: =IF('Feed Input'!F51=0," ",'Feed Input'!E23) ->  | H77: =IF('Feed Input'!F51=0," ",ROUND((D77/1000)*F77,2)) -> 
A78: Total Boar: | D78: =SUM(D58:D77) -> 1000 | E78: kg | H78: =SUM(H58:H77) -> 377.01
A79: Adjusted For Weight Loss | F79: ='Feed Input'!$E$26 -> 1.25 | G79: % | H79: =H78+(F79*H78/100) -> 381.722625
A80: Plus Processing Cost | F80: ='Feed Input'!$E$25 -> 10 | H80: =IF(H79=0,0,H79+F80) -> 391.722625
A81: Plus Labour Cost | F81: ='Feed Input'!$E$27 -> 10 | H81: =H80+F81 -> 401.722625
A83: ='Feed Input'!D55 -> Pre Starter 1
A84: ='Feed Input'!B4 -> Wheat | D84: =IF('Feed Input'!D57=0," ",'Feed Input'!D57) -> 106 | F84: =IF('Feed Input'!D57=0," ",'Feed Input'!E4) -> 370 | H84: =IF('Feed Input'!D57=0," ",ROUND((D84/1000)*F84,2)) -> 39.22
A85: ='Feed Input'!B5 -> Barley | D85: =IF('Feed Input'!D58=0," ",'Feed Input'!D58) ->  | F85: =IF('Feed Input'!D58=0," ",'Feed Input'!E5) ->  | H85: =IF('Feed Input'!D58=0," ",ROUND((D85/1000)*F85,2)) -> 
A86: ='Feed Input'!B6 -> Corn | D86: =IF('Feed Input'!D59=0," ",'Feed Input'!D59) ->  | F86: =IF('Feed Input'!D59=0," ",'Feed Input'!E6) ->  | H86: =IF('Feed Input'!D59=0," ",ROUND((D86/1000)*F86,2)) -> 
A87: ='Feed Input'!B7 -> Soybean Meal | D87: =IF('Feed Input'!D60=0," ",'Feed Input'!D60) -> 120 | F87: =IF('Feed Input'!D60=0," ",'Feed Input'!E7) -> 665 | H87: =IF('Feed Input'!D60=0," ",ROUND((D87/1000)*F87,2)) -> 79.8
A88: ='Feed Input'!B8 -> Canola Meal | D88: =IF('Feed Input'!D61=0," ",'Feed Input'!D61) ->  | F88: =IF('Feed Input'!D61=0," ",'Feed Input'!E8) ->  | H88: =IF('Feed Input'!D61=0," ",ROUND((D88/1000)*F88,2)) -> 
A89: ='Feed Input'!B9 -> Peas | D89: =IF('Feed Input'!D62=0," ",'Feed Input'!D62) ->  | F89: =IF('Feed Input'!D62=0," ",'Feed Input'!E9) ->  | H89: =IF('Feed Input'!D62=0," ",ROUND((D89/1000)*F89,2)) -> 
A90: ='Feed Input'!B10 -> Sow Micro Premix | D90: =IF('Feed Input'!D63=0," ",'Feed Input'!D63) -> 5 | F90: =IF('Feed Input'!D63=0," ",'Feed Input'!E10) -> 4000 | H90: =IF('Feed Input'!D63=0," ",ROUND((D90/1000)*F90,2)) -> 20
A91: ='Feed Input'!B11 -> Grower Micro Premix | D91: =IF('Feed Input'!D64=0," ",'Feed Input'!D64) ->  | F91: =IF('Feed Input'!D64=0," ",'Feed Input'!E11) ->  | H91: =IF('Feed Input'!D64=0," ",ROUND((D91/1000)*F91,2)) -> 
A92: ='Feed Input'!B12 -> Canola Oil | D92: =IF('Feed Input'!D65=0," ",'Feed Input'!D65) -> 27 | F92: =IF('Feed Input'!D65=0," ",'Feed Input'!E12) -> 2400 | H92: =IF('Feed Input'!D65=0," ",ROUND((D92/1000)*F92,2)) -> 64.8
A93: ='Feed Input'!B13 -> Whey Powder | D93: =IF('Feed Input'!D66=0," ",'Feed Input'!D66) -> 121 | F93: =IF('Feed Input'!D66=0," ",'Feed Input'!E13) -> 1364.6 | H93: =IF('Feed Input'!D66=0," ",ROUND((D93/1000)*F93,2)) -> 165.12
A94: ='Feed Input'!B14 -> Fish Meal | D94: =IF('Feed Input'!D67=0," ",'Feed Input'!D67) -> 61 | F94: =IF('Feed Input'!D67=0," ",'Feed Input'!E14) -> 3364.4 | H94: =IF('Feed Input'!D67=0," ",ROUND((D94/1000)*F94,2)) -> 205.23
A95: ='Feed Input'!B15 -> Plasma | D95: =IF('Feed Input'!D68=0," ",'Feed Input'!D68) -> 59 | F95: =IF('Feed Input'!D68=0," ",'Feed Input'!E15) -> 5270 | H95: =IF('Feed Input'!D68=0," ",ROUND((D95/1000)*F95,2)) -> 310.93
A96: ='Feed Input'!B16 -> Limestone | D96: =IF('Feed Input'!D69=0," ",'Feed Input'!D69) -> 12.5 | F96: =IF('Feed Input'!D69=0," ",'Feed Input'!E16) -> 203.95 | H96: =IF('Feed Input'!D69=0," ",ROUND((D96/1000)*F96,2)) -> 2.55
A97: ='Feed Input'!B17 -> Dical (16% Ca-21% P) | D97: =IF('Feed Input'!D70=0," ",'Feed Input'!D70) -> 10 | F97: =IF('Feed Input'!D70=0," ",'Feed Input'!E17) -> 1544.23 | H97: =IF('Feed Input'!D70=0," ",ROUND((D97/1000)*F97,2)) -> 15.44
A98: ='Feed Input'!B18 -> Salt - 96% | D98: =IF('Feed Input'!D71=0," ",'Feed Input'!D71) -> 3.5 | F98: =IF('Feed Input'!D71=0," ",'Feed Input'!E18) -> 261.9 | H98: =IF('Feed Input'!D71=0," ",ROUND((D98/1000)*F98,2)) -> 0.92
A99: ='Feed Input'!B19 -> Phytase | D99: =IF('Feed Input'!D72=0," ",'Feed Input'!D72) ->  | F99: =IF('Feed Input'!D72=0," ",'Feed Input'!E19) ->  | H99: =IF('Feed Input'!D72=0," ",ROUND((D99/1000)*F99,2)) -> 
A100: ='Feed Input'!B20 -> L-Lysine HCL | D100: =IF('Feed Input'!D73=0," ",'Feed Input'!D73) -> 0.5 | F100: =IF('Feed Input'!D73=0," ",'Feed Input'!E20) -> 2248.5 | H100: =IF('Feed Input'!D73=0," ",ROUND((D100/1000)*F100,2)) -> 1.12
A101: ='Feed Input'!B21 -> L-Threonine | D101: =IF('Feed Input'!D74=0," ",'Feed Input'!D74) ->  | F101: =IF('Feed Input'!D74=0," ",'Feed Input'!E21) ->  | H101: =IF('Feed Input'!D74=0," ",ROUND((D101/1000)*F101,2)) -> 
A102: ='Feed Input'!B22 -> D L-Methionine | D102: =IF('Feed Input'!D75=0," ",'Feed Input'!D75) ->  | F102: =IF('Feed Input'!D75=0," ",'Feed Input'!E22) ->  | H102: =IF('Feed Input'!D75=0," ",ROUND((D102/1000)*F102,2)) -> 
A103: ='Feed Input'!B23 -> Oats - Groats | D103: =IF('Feed Input'!D76=0," ",'Feed Input'!D76) -> 474.5 | F103: =IF('Feed Input'!D76=0," ",'Feed Input'!E23) -> 375 | H103: =IF('Feed Input'!D76=0," ",ROUND((D103/1000)*F103,2)) -> 177.94
A104: Total Pre Starter 1: | D104: =SUM(D84:D103) -> 1000 | E104: kg | H104: =SUM(H84:H103) -> 1083.07
A105: Adjusted For Weight Loss | F105: ='Feed Input'!$E$26 -> 1.25 | G105: % | H105: =H104+(F105*H104/100) -> 1096.608375
A106: Plus Processing Cost | F106: ='Feed Input'!$E$25 -> 10 | H106: =IF(H105=0,0,H105+F106) -> 1106.608375
A107: Plus Labour Cost | F107: ='Feed Input'!$E$27 -> 10 | H107: =H106+F107 -> 1116.608375
A109: ='Feed Input'!E55 -> Pre Starter 2
A110: ='Feed Input'!B4 -> Wheat | D110: =IF('Feed Input'!E57=0," ",'Feed Input'!E57) -> 134.5 | F110: =IF('Feed Input'!E57=0," ",'Feed Input'!E4) -> 370 | H110: =IF('Feed Input'!E57=0," ",ROUND((D110/1000)*F110,2)) -> 49.77
A111: ='Feed Input'!B5 -> Barley | D111: =IF('Feed Input'!E58=0," ",'Feed Input'!E58) ->  | F111: =IF('Feed Input'!E58=0," ",'Feed Input'!E5) ->  | H111: =IF('Feed Input'!E58=0," ",ROUND((D111/1000)*F111,2)) -> 
A112: ='Feed Input'!B6 -> Corn | D112: =IF('Feed Input'!E59=0," ",'Feed Input'!E59) ->  | F112: =IF('Feed Input'!E59=0," ",'Feed Input'!E6) ->  | H112: =IF('Feed Input'!E59=0," ",ROUND((D112/1000)*F112,2)) -> 
A113: ='Feed Input'!B7 -> Soybean Meal | D113: =IF('Feed Input'!E60=0," ",'Feed Input'!E60) -> 130 | F113: =IF('Feed Input'!E60=0," ",'Feed Input'!E7) -> 665 | H113: =IF('Feed Input'!E60=0," ",ROUND((D113/1000)*F113,2)) -> 86.45
A114: ='Feed Input'!B8 -> Canola Meal | D114: =IF('Feed Input'!E61=0," ",'Feed Input'!E61) ->  | F114: =IF('Feed Input'!E61=0," ",'Feed Input'!E8) ->  | H114: =IF('Feed Input'!E61=0," ",ROUND((D114/1000)*F114,2)) -> 
A115: ='Feed Input'!B9 -> Peas | D115: =IF('Feed Input'!E62=0," ",'Feed Input'!E62) ->  | F115: =IF('Feed Input'!E62=0," ",'Feed Input'!E9) ->  | H115: =IF('Feed Input'!E62=0," ",ROUND((D115/1000)*F115,2)) -> 
A116: ='Feed Input'!B10 -> Sow Micro Premix | D116: =IF('Feed Input'!E63=0," ",'Feed Input'!E63) -> 5 | F116: =IF('Feed Input'!E63=0," ",'Feed Input'!E10) -> 4000 | H116: =IF('Feed Input'!E63=0," ",ROUND((D116/1000)*F116,2)) -> 20
A117: ='Feed Input'!B11 -> Grower Micro Premix | D117: =IF('Feed Input'!E64=0," ",'Feed Input'!E64) ->  | F117: =IF('Feed Input'!E64=0," ",'Feed Input'!E11) ->  | H117: =IF('Feed Input'!E64=0," ",ROUND((D117/1000)*F117,2)) -> 
A118: ='Feed Input'!B12 -> Canola Oil | D118: =IF('Feed Input'!E65=0," ",'Feed Input'!E65) -> 19 | F118: =IF('Feed Input'!E65=0," ",'Feed Input'!E12) -> 2400 | H118: =IF('Feed Input'!E65=0," ",ROUND((D118/1000)*F118,2)) -> 45.6
A119: ='Feed Input'!B13 -> Whey Powder | D119: =IF('Feed Input'!E66=0," ",'Feed Input'!E66) -> 125 | F119: =IF('Feed Input'!E66=0," ",'Feed Input'!E13) -> 1364.6 | H119: =IF('Feed Input'!E66=0," ",ROUND((D119/1000)*F119,2)) -> 170.58
A120: ='Feed Input'!B14 -> Fish Meal | D120: =IF('Feed Input'!E67=0," ",'Feed Input'!E67) -> 75 | F120: =IF('Feed Input'!E67=0," ",'Feed Input'!E14) -> 3364.4 | H120: =IF('Feed Input'!E67=0," ",ROUND((D120/1000)*F120,2)) -> 252.33
A121: ='Feed Input'!B15 -> Plasma | D121: =IF('Feed Input'!E68=0," ",'Feed Input'!E68) ->  | F121: =IF('Feed Input'!E68=0," ",'Feed Input'!E15) ->  | H121: =IF('Feed Input'!E68=0," ",ROUND((D121/1000)*F121,2)) -> 
A122: ='Feed Input'!B16 -> Limestone | D122: =IF('Feed Input'!E69=0," ",'Feed Input'!E69) -> 12.5 | F122: =IF('Feed Input'!E69=0," ",'Feed Input'!E16) -> 203.95 | H122: =IF('Feed Input'!E69=0," ",ROUND((D122/1000)*F122,2)) -> 2.55
A123: ='Feed Input'!B17 -> Dical (16% Ca-21% P) | D123: =IF('Feed Input'!E70=0," ",'Feed Input'!E70) -> 10 | F123: =IF('Feed Input'!E70=0," ",'Feed Input'!E17) -> 1544.23 | H123: =IF('Feed Input'!E70=0," ",ROUND((D123/1000)*F123,2)) -> 15.44
A124: ='Feed Input'!B18 -> Salt - 96% | D124: =IF('Feed Input'!E71=0," ",'Feed Input'!E71) -> 3.5 | F124: =IF('Feed Input'!E71=0," ",'Feed Input'!E18) -> 261.9 | H124: =IF('Feed Input'!E71=0," ",ROUND((D124/1000)*F124,2)) -> 0.92
A125: ='Feed Input'!B19 -> Phytase | D125: =IF('Feed Input'!E72=0," ",'Feed Input'!E72) ->  | F125: =IF('Feed Input'!E72=0," ",'Feed Input'!E19) ->  | H125: =IF('Feed Input'!E72=0," ",ROUND((D125/1000)*F125,2)) -> 
A126: ='Feed Input'!B20 -> L-Lysine HCL | D126: =IF('Feed Input'!E73=0," ",'Feed Input'!E73) -> 0.5 | F126: =IF('Feed Input'!E73=0," ",'Feed Input'!E20) -> 2248.5 | H126: =IF('Feed Input'!E73=0," ",ROUND((D126/1000)*F126,2)) -> 1.12
A127: ='Feed Input'!B21 -> L-Threonine | D127: =IF('Feed Input'!E74=0," ",'Feed Input'!E74) ->  | F127: =IF('Feed Input'!E74=0," ",'Feed Input'!E21) ->  | H127: =IF('Feed Input'!E74=0," ",ROUND((D127/1000)*F127,2)) -> 
A128: ='Feed Input'!B22 -> D L-Methionine | D128: =IF('Feed Input'!E75=0," ",'Feed Input'!E75) ->  | F128: =IF('Feed Input'!E75=0," ",'Feed Input'!E22) ->  | H128: =IF('Feed Input'!E75=0," ",ROUND((D128/1000)*F128,2)) -> 
A129: ='Feed Input'!B23 -> Oats - Groats | D129: =IF('Feed Input'!E76=0," ",'Feed Input'!E76) -> 485 | F129: =IF('Feed Input'!E76=0," ",'Feed Input'!E23) -> 375 | H129: =IF('Feed Input'!E76=0," ",ROUND((D129/1000)*F129,2)) -> 181.88
A130: Total Pre Starter 2 | D130: =SUM(D109:D129) -> 1000 | E130: kg | H130: =SUM(H109:H129) -> 826.64
A131: Adjusted For Weight Loss | F131: ='Feed Input'!$E$26 -> 1.25 | G131: % | H131: =H130+(F131*H130/100) -> 836.973
A132: Plus Processing Cost | F132: ='Feed Input'!$E$25 -> 10 | H132: =IF(H131=0,0,H131+F132) -> 846.973
A133: Plus Labour Cost | F133: ='Feed Input'!$E$27 -> 10 | H133: =H132+F133 -> 856.973
A135: ='Feed Input'!F55 -> Starter 1
A136: ='Feed Input'!B4 -> Wheat | D136: =IF('Feed Input'!F57=0," ",'Feed Input'!F57) -> 405 | F136: =IF('Feed Input'!F57=0," ",'Feed Input'!E4) -> 370 | H136: =IF('Feed Input'!F57=0," ",ROUND((D136/1000)*F136,2)) -> 149.85
A137: ='Feed Input'!B5 -> Barley | D137: =IF('Feed Input'!F58=0," ",'Feed Input'!F58) ->  | F137: =IF('Feed Input'!F58=0," ",'Feed Input'!E5) ->  | H137: =IF('Feed Input'!F58=0," ",ROUND((D137/1000)*F137,2)) -> 
A138: ='Feed Input'!B6 -> Corn | D138: =IF('Feed Input'!F59=0," ",'Feed Input'!F59) -> 249 | F138: =IF('Feed Input'!F59=0," ",'Feed Input'!E6) -> 355 | H138: =IF('Feed Input'!F59=0," ",ROUND((D138/1000)*F138,2)) -> 88.4
A139: ='Feed Input'!B7 -> Soybean Meal | D139: =IF('Feed Input'!F60=0," ",'Feed Input'!F60) -> 200 | F139: =IF('Feed Input'!F60=0," ",'Feed Input'!E7) -> 665 | H139: =IF('Feed Input'!F60=0," ",ROUND((D139/1000)*F139,2)) -> 133
A140: ='Feed Input'!B8 -> Canola Meal | D140: =IF('Feed Input'!F61=0," ",'Feed Input'!F61) ->  | F140: =IF('Feed Input'!F61=0," ",'Feed Input'!E8) ->  | H140: =IF('Feed Input'!F61=0," ",ROUND((D140/1000)*F140,2)) -> 
A141: ='Feed Input'!B9 -> Peas | D141: =IF('Feed Input'!F62=0," ",'Feed Input'!F62) ->  | F141: =IF('Feed Input'!F62=0," ",'Feed Input'!E9) ->  | H141: =IF('Feed Input'!F62=0," ",ROUND((D141/1000)*F141,2)) -> 
A142: ='Feed Input'!B10 -> Sow Micro Premix | D142: =IF('Feed Input'!F63=0," ",'Feed Input'!F63) -> 5 | F142: =IF('Feed Input'!F63=0," ",'Feed Input'!E10) -> 4000 | H142: =IF('Feed Input'!F63=0," ",ROUND((D142/1000)*F142,2)) -> 20
A143: ='Feed Input'!B11 -> Grower Micro Premix | D143: =IF('Feed Input'!F64=0," ",'Feed Input'!F64) ->  | F143: =IF('Feed Input'!F64=0," ",'Feed Input'!E11) ->  | H143: =IF('Feed Input'!F64=0," ",ROUND((D143/1000)*F143,2)) -> 
A144: ='Feed Input'!B12 -> Canola Oil | D144: =IF('Feed Input'!F65=0," ",'Feed Input'!F65) -> 11 | F144: =IF('Feed Input'!F65=0," ",'Feed Input'!E12) -> 2400 | H144: =IF('Feed Input'!F65=0," ",ROUND((D144/1000)*F144,2)) -> 26.4
A145: ='Feed Input'!B13 -> Whey Powder | D145: =IF('Feed Input'!F66=0," ",'Feed Input'!F66) -> 70 | F145: =IF('Feed Input'!F66=0," ",'Feed Input'!E13) -> 1364.6 | H145: =IF('Feed Input'!F66=0," ",ROUND((D145/1000)*F145,2)) -> 95.52
A146: ='Feed Input'!B14 -> Fish Meal | D146: =IF('Feed Input'!F67=0," ",'Feed Input'!F67) -> 40 | F146: =IF('Feed Input'!F67=0," ",'Feed Input'!E14) -> 3364.4 | H146: =IF('Feed Input'!F67=0," ",ROUND((D146/1000)*F146,2)) -> 134.58
A147: ='Feed Input'!B15 -> Plasma | D147: =IF('Feed Input'!F68=0," ",'Feed Input'!F68) ->  | F147: =IF('Feed Input'!F68=0," ",'Feed Input'!E15) ->  | H147: =IF('Feed Input'!F68=0," ",ROUND((D147/1000)*F147,2)) -> 
A148: ='Feed Input'!B16 -> Limestone | D148: =IF('Feed Input'!F69=0," ",'Feed Input'!F69) -> 7 | F148: =IF('Feed Input'!F69=0," ",'Feed Input'!E16) -> 203.95 | H148: =IF('Feed Input'!F69=0," ",ROUND((D148/1000)*F148,2)) -> 1.43
A149: ='Feed Input'!B17 -> Dical (16% Ca-21% P) | D149: =IF('Feed Input'!F70=0," ",'Feed Input'!F70) -> 8 | F149: =IF('Feed Input'!F70=0," ",'Feed Input'!E17) -> 1544.23 | H149: =IF('Feed Input'!F70=0," ",ROUND((D149/1000)*F149,2)) -> 12.35
A150: ='Feed Input'!B18 -> Salt - 96% | D150: =IF('Feed Input'!F71=0," ",'Feed Input'!F71) -> 3.5 | F150: =IF('Feed Input'!F71=0," ",'Feed Input'!E18) -> 261.9 | H150: =IF('Feed Input'!F71=0," ",ROUND((D150/1000)*F150,2)) -> 0.92
A151: ='Feed Input'!B19 -> Phytase | D151: =IF('Feed Input'!F72=0," ",'Feed Input'!F72) -> 0.5 | F151: =IF('Feed Input'!F72=0," ",'Feed Input'!E19) -> 14500 | H151: =IF('Feed Input'!F72=0," ",ROUND((D151/1000)*F151,2)) -> 7.25
A152: ='Feed Input'!B20 -> L-Lysine HCL | D152: =IF('Feed Input'!F73=0," ",'Feed Input'!F73) -> 1 | F152: =IF('Feed Input'!F73=0," ",'Feed Input'!E20) -> 2248.5 | H152: =IF('Feed Input'!F73=0," ",ROUND((D152/1000)*F152,2)) -> 2.25
A153: ='Feed Input'!B21 -> L-Threonine | D153: =IF('Feed Input'!F74=0," ",'Feed Input'!F74) ->  | F153: =IF('Feed Input'!F74=0," ",'Feed Input'!E21) ->  | H153: =IF('Feed Input'!F74=0," ",ROUND((D153/1000)*F153,2)) -> 
A154: ='Feed Input'!B22 -> D L-Methionine | D154: =IF('Feed Input'!F75=0," ",'Feed Input'!F75) ->  | F154: =IF('Feed Input'!F75=0," ",'Feed Input'!E22) ->  | H154: =IF('Feed Input'!F75=0," ",ROUND((D154/1000)*F154,2)) -> 
A155: ='Feed Input'!B23 -> Oats - Groats | D155: =IF('Feed Input'!F76=0," ",'Feed Input'!F76) ->  | F155: =IF('Feed Input'!F76=0," ",'Feed Input'!E23) ->  | H155: =IF('Feed Input'!F76=0," ",ROUND((D155/1000)*F155,2)) -> 
A156: Total Starter 1 | D156: =SUM(D136:D155) -> 1000 | E156: kg | H156: =SUM(H136:H155) -> 671.95
A157: Adjusted For Weight Loss | F157: ='Feed Input'!$E$26 -> 1.25 | G157: % | H157: =H156+(F157*H156/100) -> 680.349375
A158: Plus Processing Cost | F158: ='Feed Input'!$E$25 -> 10 | H158: =IF(H157=0,0,H157+F158) -> 690.349375
A159: Plus Labour Cost | F159: ='Feed Input'!$E$27 -> 10 | H159: =H158+F159 -> 700.349375
A161: ='Feed Input'!G55 -> Starter 2
A162: ='Feed Input'!B4 -> Wheat | D162: ='Feed Input'!G57 -> 404 | F162: =IF('Feed Input'!G57=0," ",'Feed Input'!E4) -> 370 | H162: =IF('Feed Input'!G57=0," ",ROUND((D162/1000)*F162,2)) -> 149.48
A163: ='Feed Input'!B5 -> Barley | D163: ='Feed Input'!G58 -> 65 | F163: =IF('Feed Input'!G58=0," ",'Feed Input'!E5) -> 320 | H163: =IF('Feed Input'!G58=0," ",ROUND((D163/1000)*F163,2)) -> 20.8
A164: ='Feed Input'!B6 -> Corn | D164: ='Feed Input'!G59 -> 250 | F164: =IF('Feed Input'!G59=0," ",'Feed Input'!E6) -> 355 | H164: =IF('Feed Input'!G59=0," ",ROUND((D164/1000)*F164,2)) -> 88.75
A165: ='Feed Input'!B7 -> Soybean Meal | D165: ='Feed Input'!G60 -> 227 | F165: =IF('Feed Input'!G60=0," ",'Feed Input'!E7) -> 665 | H165: =IF('Feed Input'!G60=0," ",ROUND((D165/1000)*F165,2)) -> 150.96
A166: ='Feed Input'!B8 -> Canola Meal | D166: ='Feed Input'!G61 -> 0 | F166: =IF('Feed Input'!G61=0," ",'Feed Input'!E8) ->  | H166: =IF('Feed Input'!G61=0," ",ROUND((D166/1000)*F166,2)) -> 
A167: ='Feed Input'!B9 -> Peas | D167: ='Feed Input'!G62 -> 0 | F167: =IF('Feed Input'!G62=0," ",'Feed Input'!E9) ->  | H167: =IF('Feed Input'!G62=0," ",ROUND((D167/1000)*F167,2)) -> 
A168: ='Feed Input'!B10 -> Sow Micro Premix | D168: ='Feed Input'!G63 -> 5 | F168: =IF('Feed Input'!G63=0," ",'Feed Input'!E10) -> 4000 | H168: =IF('Feed Input'!G63=0," ",ROUND((D168/1000)*F168,2)) -> 20
A169: ='Feed Input'!B11 -> Grower Micro Premix | D169: ='Feed Input'!G64 -> 0 | F169: =IF('Feed Input'!G64=0," ",'Feed Input'!E11) ->  | H169: =IF('Feed Input'!G64=0," ",ROUND((D169/1000)*F169,2)) -> 
A170: ='Feed Input'!B12 -> Canola Oil | D170: ='Feed Input'!G65 -> 0 | F170: =IF('Feed Input'!G65=0," ",'Feed Input'!E12) ->  | H170: =IF('Feed Input'!G65=0," ",ROUND((D170/1000)*F170,2)) -> 
A171: ='Feed Input'!B13 -> Whey Powder | D171: ='Feed Input'!G66 -> 0 | F171: =IF('Feed Input'!G66=0," ",'Feed Input'!E13) ->  | H171: =IF('Feed Input'!G66=0," ",ROUND((D171/1000)*F171,2)) -> 
A172: ='Feed Input'!B14 -> Fish Meal | D172: ='Feed Input'!G67 -> 25 | F172: =IF('Feed Input'!G67=0," ",'Feed Input'!E14) -> 3364.4 | H172: =IF('Feed Input'!G67=0," ",ROUND((D172/1000)*F172,2)) -> 84.11
A173: ='Feed Input'!B15 -> Plasma | D173: ='Feed Input'!G68 -> 0 | F173: =IF('Feed Input'!G68=0," ",'Feed Input'!E15) ->  | H173: =IF('Feed Input'!G68=0," ",ROUND((D173/1000)*F173,2)) -> 
A174: ='Feed Input'!B16 -> Limestone | D174: ='Feed Input'!G69 -> 11 | F174: =IF('Feed Input'!G69=0," ",'Feed Input'!E16) -> 203.95 | H174: =IF('Feed Input'!G69=0," ",ROUND((D174/1000)*F174,2)) -> 2.24
A175: ='Feed Input'!B17 -> Dical (16% Ca-21% P) | D175: ='Feed Input'!G70 -> 8 | F175: =IF('Feed Input'!G70=0," ",'Feed Input'!E17) -> 1544.23 | H175: =IF('Feed Input'!G70=0," ",ROUND((D175/1000)*F175,2)) -> 12.35
A176: ='Feed Input'!B18 -> Salt - 96% | D176: ='Feed Input'!G71 -> 3.5 | F176: =IF('Feed Input'!G71=0," ",'Feed Input'!E18) -> 261.9 | H176: =IF('Feed Input'!G71=0," ",ROUND((D176/1000)*F176,2)) -> 0.92
A177: ='Feed Input'!B19 -> Phytase | D177: ='Feed Input'!G72 -> 0.5 | F177: =IF('Feed Input'!G72=0," ",'Feed Input'!E19) -> 14500 | H177: =IF('Feed Input'!G72=0," ",ROUND((D177/1000)*F177,2)) -> 7.25
A178: ='Feed Input'!B20 -> L-Lysine HCL | D178: ='Feed Input'!G73 -> 1 | F178: =IF('Feed Input'!G73=0," ",'Feed Input'!E20) -> 2248.5 | H178: =IF('Feed Input'!G73=0," ",ROUND((D178/1000)*F178,2)) -> 2.25
A179: ='Feed Input'!B21 -> L-Threonine | D179: ='Feed Input'!G74 -> 0 | F179: =IF('Feed Input'!G74=0," ",'Feed Input'!E21) ->  | H179: =IF('Feed Input'!G74=0," ",ROUND((D179/1000)*F179,2)) -> 
A180: ='Feed Input'!B22 -> D L-Methionine | D180: ='Feed Input'!G75 -> 0 | F180: =IF('Feed Input'!G75=0," ",'Feed Input'!E22) ->  | H180: =IF('Feed Input'!G75=0," ",ROUND((D180/1000)*F180,2)) -> 
A181: ='Feed Input'!B23 -> Oats - Groats | D181: ='Feed Input'!G76 -> 0 | F181: =IF('Feed Input'!G76=0," ",'Feed Input'!E23) ->  | H181: =IF('Feed Input'!G76=0," ",ROUND((D181/1000)*F181,2)) -> 
A182: Total Starter 2 | D182: =SUM(D162:D181) -> 1000 | E182: kg | H182: =SUM(H162:H181) -> 539.11
A183: Adjusted For Weight Loss | F183: ='Feed Input'!$E$26 -> 1.25 | G183: % | H183: =H182+(F183*H182/100) -> 545.848875
A184: Plus Processing Cost | F184: ='Feed Input'!$E$25 -> 10 | H184: =IF(H183=0,0,H183+F184) -> 555.848875
A185: Plus Labour Cost | F185: ='Feed Input'!$E$27 -> 10 | H185: =H184+F185 -> 565.848875
A187: ='Feed Input'!D80 -> Starter
A188: ='Feed Input'!B4 -> Wheat | D188: =IF('Feed Input'!D83=0," ",'Feed Input'!D83) -> 475 | F188: =IF('Feed Input'!D83=0," ",'Feed Input'!E4) -> 370 | H188: =IF('Feed Input'!D83=0," ",ROUND((D188/1000)*F188,2)) -> 175.75
A189: ='Feed Input'!B5 -> Barley | D189: =IF('Feed Input'!D84=0," ",'Feed Input'!D84) -> 215 | F189: =IF('Feed Input'!D84=0," ",'Feed Input'!E5) -> 320 | H189: =IF('Feed Input'!D84=0," ",ROUND((D189/1000)*F189,2)) -> 68.8
A190: ='Feed Input'!B6 -> Corn | D190: =IF('Feed Input'!D85=0," ",'Feed Input'!D85) ->  | F190: =IF('Feed Input'!D85=0," ",'Feed Input'!E6) ->  | H190: =IF('Feed Input'!D85=0," ",ROUND((D190/1000)*F190,2)) -> 
A191: ='Feed Input'!B7 -> Soybean Meal | D191: =IF('Feed Input'!D86=0," ",'Feed Input'!D86) -> 175 | F191: =IF('Feed Input'!D86=0," ",'Feed Input'!E7) -> 665 | H191: =IF('Feed Input'!D86=0," ",ROUND((D191/1000)*F191,2)) -> 116.38
A192: ='Feed Input'!B8 -> Canola Meal | D192: =IF('Feed Input'!D87=0," ",'Feed Input'!D87) ->  | F192: =IF('Feed Input'!D87=0," ",'Feed Input'!E8) ->  | H192: =IF('Feed Input'!D87=0," ",ROUND((D192/1000)*F192,2)) -> 
A193: ='Feed Input'!B9 -> Peas | D193: =IF('Feed Input'!D88=0," ",'Feed Input'!D88) -> 100 | F193: =IF('Feed Input'!D88=0," ",'Feed Input'!E9) -> 390 | H193: =IF('Feed Input'!D88=0," ",ROUND((D193/1000)*F193,2)) -> 39
A194: ='Feed Input'!B10 -> Sow Micro Premix | D194: =IF('Feed Input'!D89=0," ",'Feed Input'!D89) ->  | F194: =IF('Feed Input'!D89=0," ",'Feed Input'!E10) ->  | H194: =IF('Feed Input'!D89=0," ",ROUND((D194/1000)*F194,2)) -> 
A195: ='Feed Input'!B11 -> Grower Micro Premix | D195: =IF('Feed Input'!D90=0," ",'Feed Input'!D90) -> 3 | F195: =IF('Feed Input'!D90=0," ",'Feed Input'!E11) -> 8000 | H195: =IF('Feed Input'!D90=0," ",ROUND((D195/1000)*F195,2)) -> 24
A196: ='Feed Input'!B12 -> Canola Oil | D196: =IF('Feed Input'!D91=0," ",'Feed Input'!D91) -> 10 | F196: =IF('Feed Input'!D91=0," ",'Feed Input'!E12) -> 2400 | H196: =IF('Feed Input'!D91=0," ",ROUND((D196/1000)*F196,2)) -> 24
A197: ='Feed Input'!B13 -> Whey Powder | D197: =IF('Feed Input'!D92=0," ",'Feed Input'!D92) ->  | F197: =IF('Feed Input'!D92=0," ",'Feed Input'!E13) ->  | H197: =IF('Feed Input'!D92=0," ",ROUND((D197/1000)*F197,2)) -> 
A198: ='Feed Input'!B14 -> Fish Meal | D198: =IF('Feed Input'!D93=0," ",'Feed Input'!D93) ->  | F198: =IF('Feed Input'!D93=0," ",'Feed Input'!E14) ->  | H198: =IF('Feed Input'!D93=0," ",ROUND((D198/1000)*F198,2)) -> 
A199: ='Feed Input'!B15 -> Plasma | D199: =IF('Feed Input'!D94=0," ",'Feed Input'!D94) ->  | F199: =IF('Feed Input'!D94=0," ",'Feed Input'!E15) ->  | H199: =IF('Feed Input'!D94=0," ",ROUND((D199/1000)*F199,2)) -> 
A200: ='Feed Input'!B16 -> Limestone | D200: =IF('Feed Input'!D95=0," ",'Feed Input'!D95) -> 12 | F200: =IF('Feed Input'!D95=0," ",'Feed Input'!E16) -> 203.95 | H200: =IF('Feed Input'!D95=0," ",ROUND((D200/1000)*F200,2)) -> 2.45
A201: ='Feed Input'!B17 -> Dical (16% Ca-21% P) | D201: =IF('Feed Input'!D96=0," ",'Feed Input'!D96) -> 5 | F201: =IF('Feed Input'!D96=0," ",'Feed Input'!E17) -> 1544.23 | H201: =IF('Feed Input'!D96=0," ",ROUND((D201/1000)*F201,2)) -> 7.72
A202: ='Feed Input'!B18 -> Salt - 96% | D202: =IF('Feed Input'!D97=0," ",'Feed Input'!D97) -> 3.5 | F202: =IF('Feed Input'!D97=0," ",'Feed Input'!E18) -> 261.9 | H202: =IF('Feed Input'!D97=0," ",ROUND((D202/1000)*F202,2)) -> 0.92
A203: ='Feed Input'!B19 -> Phytase | D203: =IF('Feed Input'!D98=0," ",'Feed Input'!D98) -> 0.5 | F203: =IF('Feed Input'!D98=0," ",'Feed Input'!E19) -> 14500 | H203: =IF('Feed Input'!D98=0," ",ROUND((D203/1000)*F203,2)) -> 7.25
A204: ='Feed Input'!B20 -> L-Lysine HCL | D204: =IF('Feed Input'!D99=0," ",'Feed Input'!D99) -> 1 | F204: =IF('Feed Input'!D99=0," ",'Feed Input'!E20) -> 2248.5 | H204: =IF('Feed Input'!D99=0," ",ROUND((D204/1000)*F204,2)) -> 2.25
A205: ='Feed Input'!B21 -> L-Threonine | D205: =IF('Feed Input'!D100=0," ",'Feed Input'!D100) ->  | F205: =IF('Feed Input'!D100=0," ",'Feed Input'!E21) ->  | H205: =IF('Feed Input'!D100=0," ",ROUND((D205/1000)*F205,2)) -> 
A206: ='Feed Input'!B22 -> D L-Methionine | D206: =IF('Feed Input'!D101=0," ",'Feed Input'!D101) ->  | F206: =IF('Feed Input'!D101=0," ",'Feed Input'!E22) ->  | H206: =IF('Feed Input'!D101=0," ",ROUND((D206/1000)*F206,2)) -> 
A207: ='Feed Input'!B23 -> Oats - Groats | D207: =IF('Feed Input'!D102=0," ",'Feed Input'!D102) ->  | F207: =IF('Feed Input'!D102=0," ",'Feed Input'!E23) ->  | H207: =IF('Feed Input'!D102=0," ",ROUND((D207/1000)*F207,2)) -> 
A208: Total Starter | D208: =SUM(D188:D207) -> 1000 | E208: kg | H208: =SUM(H188:H207) -> 468.52
... 53 more rows

Sheet Farrow Finish Worksheet
A2: Farrow Finish Pig Production Cost Worksheet
J3: Your Cost
A4: A. Operating Costs
A6: 1. Feed Requirements and Costs
B8: 1.01 Sow Lactation - Purchased Feed
D9: ='Farrow Input'!G16 -> 21 | F9: days average weaning age
C10: x | D10: ='Farrow Input'!G15 -> 2.38 | F10: litters/sow/year
C11: = | D11: =D9*D10 -> 49.98 | F11: days lactation
C12: x | D12: ='Farrow Input'!E33 -> 6.53 | F12: kg ration/day
C13: x | D13: ='Farrow Input'!G33 -> 635 | F13: /tonne ration
C14: ÷ | D14: 1000 | F14: kg/tonne
C15: ÷ | D15: ='Farrow Input'!$G$79 -> 26.0036424 | F15: pigs sold/sow/year
C16: = | D16: =(D9*D10*D12*D13/1000)/D15 -> 7.96982845 | F16: /pig sold
B17: 1.011 Sow Lactation - Home Mixed Feed
D18: =D9 -> 21 | F18: days average weaning age
C19: x | D19: =D10 -> 2.38 | F19: litters/sow/year
C20: = | D20: =D18*D19 -> 49.98 | F20: days lactation
C21: x | D21: =D12 -> 6.53 | F21: kg ration/day
C22: x | D22: ='Farrow Input'!H33 -> 467.18075 | F22: /tonne ration
C23: ÷ | D23: 1000 | F23: kg/tonne
C24: ÷ | D24: ='Farrow Input'!$G$79 -> 26.0036424 | F24: pigs sold/sow/year
C25: = | D25: =(D18*D19*D21*D22/1000)/D24 -> 5.863543988 | F25: /pig sold
B27: 1.02 Sow Gestation - Purchased Feed
D28: 365 | F28: days/year
C29: - | D29: =D11 -> 49.98 | F29: days lactation
C30: = | D30: =D28-D29 -> 315.02 | F30: days gestation
C31: x | D31: ='Farrow Input'!E32 -> 2.95 | F31: kg ration/day
C32: x | D32: ='Farrow Input'!G32 -> 549.75 | F32: /tonne ration
C33: ÷ | D33: 1000 | F33: kg/tonne
C34: ÷ | D34: ='Farrow Input'!$G$79 -> 26.0036424 | F34: pigs sold/sow/year
C35: = | D35: =(D30*D31*D32/D33)/D34 -> 19.64677159 | F35: /pig sold
B36: 1.021 Sow Gestation -Home Mixed Feed
D37: 365 | F37: days/year
C38: - | D38: =D20 -> 49.98 | F38: days lactation
C39: = | D39: =D37-D38 -> 315.02 | F39: days gestation
C40: x | D40: =D31 -> 2.95 | F40: kg ration/day
C41: x | D41: ='Farrow Input'!H32 -> 390.6155 | F41: /tonne ration
C42: ÷ | D42: 1000 | F42: kg/tonne
C43: ÷ | D43: ='Farrow Input'!$G$79 -> 26.0036424 | F43: pigs sold/sow/year
C44: = | D44: =(D39*D40*D41/D42)/D43 -> 13.95967896 | F44: /pig sold
B46: 1.03 Boar Ration - Purchased Feed
D47: 365 | F47: days/year
C48: x | D48: ='Farrow Input'!E34 -> 3 | F48: kg ration/day
C49: x | D49: ='Farrow Input'!G34 -> 549.75 | F49: /tonne ration
C50: x | D50: ='Farrow Input'!G14 -> 3 | F50: boars
C51: ÷ | D51: 1000 | F51: kg/tonne
C52: ÷ | D52: ='Farrow Input'!E29 -> 13714 | F52: pigs sold/year
C53: = | D53: =(D47*D48*D49*D50/D51)/D52 -> 0.1316850481 | F53: /pig sold
B54: 1.031 Boar Ration - Home Mixed Feed
D55: 365 | F55: days/year
C56: x | D56: =D48 -> 3 | F56: kg ration/day
C57: x | D57: ='Farrow Input'!H34 -> 401.722625 | F57: /tonne ration
C58: x | D58: =D50 -> 3 | F58: boars
C59: ÷ | D59: 1000 | F59: kg/tonne
C60: ÷ | D60: =D52 -> 13714 | F60: pigs sold/year
C61: = | D61: =(D55*D56*D57*D58/D59)/D60 -> 0.09622712725 | F61: /pig sold
B63: 1.04 Pre Starter 1 - Purchased Feed
D64: ='Farrow Input'!E43 -> 6.5 | F64: kg target sale weight
C65: - | D65: ='Farrow Input'!E42 -> 6 | F65: kg target weaning weight
C66: = | D66: =D64-D65 -> 0.5 | F66: kg weight gain
C67: x | D67: ='Farrow Input'!E44 -> 1.16 | F67: feed conversion ratio
C68: = | D68: =D66*D67 -> 0.58 | F68: kg ration/pig
C69: x | D69: ='Farrow Input'!G35 -> 2000 | F69: /tonne of creep feed
C70: ÷ | D70: 1000 | F70: kg/tonne
C71: x | D71: ='Farrow Input'!G17*'Farrow Input'!G15 -> 32.13 | F71: pigs born alive/sow/year
C72: ÷ | D72: ='Farrow Input'!$G$79 -> 26.0036424 | F72: pigs sold/sow/year
C73: = | D73: =((D68*D69/1000)*D71)/D72 -> 1.433291515 | F73: /pig sold
B74: 1.041 Pre Starter 1 - Home Mixed Feed
D75: =D64 -> 6.5 | F75: kg target sale weight
C76: - | D76: =D65 -> 6 | F76: kg target weaning weight
C77: = | D77: =D75-D76 -> 0.5 | F77: kg weight gain
C78: x | D78: =D67 -> 1.16 | F78: feed conversion ratio
C79: = | D79: =D77*D78 -> 0.58 | F79: kg ration/pig
C80: x | D80: ='Farrow Input'!H35 -> 1116.608375 | F80: /tonne of creep feed
C81: ÷ | D81: 1000 | F81: kg/tonne
C82: x | D82: =D71 -> 32.13 | F82: pigs born alive/sow/year
C83: ÷ | D83: ='Farrow Input'!$G$79 -> 26.0036424 | F83: pigs sold/sow/year
C84: = | D84: =((D79*D80/1000)*D82)/D83 -> 0.8002126545 | F84: /pig sold
B86: 1.05 Pre Starter 2 - Purchased Feed
D87: ='Farrow Input'!F43 -> 9 | F87: kg target sale weight
C88: - | D88: ='Farrow Input'!F42 -> 6.5 | F88: kg target weaning weight
C89: = | D89: =D87-D88 -> 2.5 | F89: kg weight gain
C90: x | D90: ='Farrow Input'!F44 -> 1.16 | F90: feed conversion ratio
C91: = | D91: ='Farrow Input'!E36 -> 2.9 | F91: kg ration/pig
C92: x | D92: ='Farrow Input'!G36 -> 1611.5 | F92: /tonne starter ration #1
C93: ÷ | D93: 1000 | F93: kg/tonne
C94: x | D94: ='Farrow Input'!F29 -> 27.43 | F94: weaners transferred/sow/year
C95: ÷ | D95: ='Farrow Input'!$G$79 -> 26.0036424 | F95: pigs sold/sow/year
C96: = | D96: =(D91*D92/1000*D94)/D95 -> 4.929693638 | F96: /pig sold
B97: 1.051 Pre Starter 2 - Home Mixed Feed
D98: =D87 -> 9 | F98: kg target sale weight
C99: - | D99: =D88 -> 6.5 | F99: kg target weaning weight
C100: = | D100: =D98-D99 -> 2.5 | F100: kg weight gain
C101: x | D101: =D90 -> 1.16 | F101: feed conversion ratio
C102: = | D102: =D91 -> 2.9 | F102: kg ration/pig
C103: x | D103: ='Farrow Input'!H36 -> 856.973 | F103: /tonne starter ration #1
C104: ÷ | D104: 1000 | F104: kg/tonne
C105: x | D105: =D94 -> 27.43 | F105: weaners transferred/sow/year
C106: ÷ | D106: ='Farrow Input'!$G$79 -> 26.0036424 | F106: pigs sold/sow/year
C107: = | D107: =(D102*D103/1000*D105)/D106 -> 2.621541636 | F107: /pig sold
B109: 1.06 Starter 1 - Purchased Feed
D110: ='Farrow Input'!G43 -> 16 | F110: kg target sale weight
C111: - | D111: ='Farrow Input'!G42 -> 9 | F111: kg target weaning weight
C112: = | D112: =D110-D111 -> 7 | F112: kg weight gain
C113: x | D113: ='Farrow Input'!G44 -> 1.285714286 | F113: feed conversion ratio
C114: = | D114: =D112*D113 -> 9 | F114: kg ration/pig
C115: x | D115: ='Farrow Input'!G37 -> 1199 | F115: /tonne starter ration #2
C116: ÷ | D116: 1000 | F116: kg/tonne
C117: x | D117: ='Farrow Input'!F29 -> 27.43 | F117: weaners transferred/sow/year
C118: ÷ | D118: ='Farrow Input'!$G$79 -> 26.0036424 | F118: pigs sold/sow/year
C119: = | D119: =(D114*D115/1000*D117)/D118 -> 11.38291034 | F119: /pig sold
B120: 1.061 Starter 1 - Home Mixed Feed
D121: =D110 -> 16 | F121: kg target sale weight
C122: - | D122: =D111 -> 9 | F122: kg target weaning weight
C123: = | D123: =D121-D122 -> 7 | F123: kg weight gain
C124: x | D124: =D113 -> 1.285714286 | F124: feed conversion ratio
C125: = | D125: =D123*D124 -> 9 | F125: kg ration/pig
C126: x | D126: ='Farrow Input'!H37 -> 700.349375 | F126: /tonne starter ration #2
C127: ÷ | D127: 1000 | F127: kg/tonne
C128: x | D128: =D117 -> 27.43 | F128: weaners transferred/sow/year
C129: ÷ | D129: ='Farrow Input'!$G$79 -> 26.0036424 | F129: pigs sold/sow/year
C130: = | D130: =(D125*D126/1000*D128)/D129 -> 6.648885858 | F130: /pig sold
B132: 1.07 Starter 2 - Purchased Feed
D133: ='Farrow Input'!H43 -> 26 | F133: kg target sale weight
C134: - | D134: ='Farrow Input'!H42 -> 16 | F134: kg target weaning weight
C135: = | D135: =D133-D134 -> 10 | F135: kg weight gain
C136: x | D136: ='Farrow Input'!H44 -> 1.6 | F136: feed conversion ratio
C137: = | D137: =D135*D136 -> 16 | F137: kg ration/pig
C138: x | D138: ='Farrow Input'!G38 -> 808.65 | F138: /tonne starter ration #2
C139: ÷ | D139: 1000 | F139: kg/tonne
C140: x | D140: ='Farrow Input'!F29 -> 27.43 | F140: weaners transferred/sow/year
C141: ÷ | D141: ='Farrow Input'!$G$79 -> 26.0036424 | F141: pigs sold/sow/year
C142: = | D142: =(D137*D138/1000*D140)/D141 -> 13.64810001 | F142: /pig sold
B143: 1.071 Starter 2 - Home Mixed Feed
D144: =D133 -> 26 | F144: kg target sale weight
C145: - | D145: =D134 -> 16 | F145: kg target weaning weight
C146: = | D146: =D144-D145 -> 10 | F146: kg weight gain
C147: x | D147: =D136 -> 1.6 | F147: feed conversion ratio
C148: = | D148: =D146*D147 -> 16 | F148: kg ration/pig
C149: x | D149: ='Farrow Input'!H38 -> 565.848875 | F149: /tonne starter ration #2
C150: ÷ | D150: 1000 | F150: kg/tonne
C151: x | D151: =D140 -> 27.43 | F151: weaners transferred/sow/year
C152: ÷ | D152: ='Farrow Input'!$G$79 -> 26.0036424 | F152: pigs sold/sow/year
C153: = | D153: =(D148*D149/1000*D151)/D152 -> 9.550191102 | F153: /pig sold
B155: 1.08 Starter Ration - Purchased Feed
D156: ='Farrow Input'!F67 -> 14 | F156: kg weight gain/pig
C157: x | D157: ='Farrow Input'!F65 -> 1.95 | F157: feed conversion ratio
C158: = | D158: =D156*D157 -> 27.3 | F158: kg ration/pig
C159: x | D159: ='Farrow Input'!G85 -> 679.58 | F159: /tonne ration
C160: ÷ | D160: 1000 | F160: kg/tonne
C161: = | D161: =D158*D159/1000 -> 18.552534 | F161: /pig sold
B162: 1.081 Starter Ration - Home Mixed Feed
D163: =D156 -> 14 | F163: kg weight gain/pig
C164: x | D164: =D157 -> 1.95 | F164: feed conversion ratio
C165: = | D165: =D163*D164 -> 27.3 | F165: kg ration/pig
C166: x | D166: ='Farrow Input'!H85 -> 494.3765 | F166: /tonne ration
C167: ÷ | D167: 1000 | F167: kg/tonne
C168: = | D168: =D165*D166/1000 -> 13.49647845 | F168: /pig sold
B170: 1.09 Grower Ration - Purchased Feed
D171: ='Farrow Input'!G67 -> 55 | F171: kg weight gain/pig
C172: x | D172: ='Farrow Input'!G65 -> 3 | F172: feed conversion ratio
C173: = | D173: =D171*D172 -> 165 | F173: kg ration/pig
C174: x | D174: ='Farrow Input'!G86 -> 550.5 | F174: /tonne ration
C175: ÷ | D175: 1000 | F175: kg/tonne
C176: = | D176: =D173*D174/1000 -> 90.8325 | F176: /pig sold
B177: 1.091 Grower Ration - Home Mixed Feed
D178: =D171 -> 55 | F178: kg weight gain/pig
C179: x | D179: =D172 -> 3 | F179: feed conversion ratio
C180: = | D180: =D178*D179 -> 165 | F180: kg ration/pig
C181: x | D181: ='Farrow Input'!H86 -> 441.372125 | F181: /tonne ration
C182: ÷ | D182: 1000 | F182: kg/tonne
C183: = | D183: =D180*D181/1000 -> 72.82640062 | F183: /pig sold
B185: 1.10 Finisher Ration - Purchased Feed
D186: ='Farrow Input'!H67 -> 26 | F186: kg weight gain/pig
C187: x | D187: ='Farrow Input'!H65 -> 3.5 | F187: feed conversion ratio
C188: = | D188: =D186*D187 -> 91 | F188: kg ration/pig
C189: x | D189: ='Farrow Input'!G87 -> 553.45 | F189: /tonne ration
C190: ÷ | D190: 1000 | F190: kg/tonne
C191: = | D191: =D188*D189/D190 -> 50.36395 | F191: /pig sold
B192: 1.101 Finisher Ration - Home Mixed Feed
D193: =D186 -> 26 | F193: kg weight gain/pig
C194: x | D194: =D187 -> 3.5 | F194: feed conversion ratio
C195: = | D195: =D193*D194 -> 91 | F195: kg ration/pig
C196: x | D196: ='Farrow Input'!H87 -> 388.064 | F196: /tonne ration
C197: ÷ | D197: 1000 | F197: kg/tonne
C198: = | D198: =D195*D196/D197 -> 35.313824 | F198: /pig sold
A200: 2. Other Operating Costs
B201: 2.01 Veterinary Medicine & Supplies
D202: ='Farrow Input'!G148 -> 10 | F202: /sow/year services
C203: + | D203: ='Farrow Input'!G149 -> 65 | F203: /sow/year medication
C204: ÷ | D204: ='Farrow Input'!$G$79 -> 26.0036424 | F204: pigs sold/sow/year
C205: = | D205: =(D202+D203)/D204 -> 2.884211329 | F205: /pig sold
D207: ='Farrow Input'!G150 -> 0 | F207: /pig transferred in
C208: x | D208: ='Farrow Input'!F60 -> 13714 | F208: pigs transferred in
C209: ÷ | D209: ='Farrow Input'!F79 -> 13001.8212 | F209: pigs sold
C210: = | D210: =D207*D208/D209 -> 0 | F210: /pig sold
C212: = | D212: =D205+D210 -> 2.884211329 | F212: /pig sold
B214: 2.02 Maintenance & Repairs
D215: ='Farrow Input'!H113 -> 6332388.733 | F215: building & equipment
C216: x | D216: ='Farrow Input'!G152 -> 1.3 | F216: %/sow/year repair & maintenance
... 227 more rows

Sheet Finish-O (hidden)
B3: =============================================================================
D4: GROWING AND FINISHING PIG PRODUCTION SUMMARY
B6: =============================================================================
B7: A. OPERATING COSTS | I7: TOTAL | J7: $/HOG SOLD | K7: $/PLACE
C8: 1. | D8: Feed Costs: | I8: -----------------------------------------------------------------------
D9: 1.01 | E9: Grower Ration #1 | I9: =J9*'Farrow Input'!F79 -> 416708.3695 | J9: =ROUND('Farrow Input'!E85*SUM('Farrow Input'!G85:H85)/1000,2) -> 32.05 | K9: =J9*'Farrow Input'!F79/'Farrow Input'!I70 -> 96.98467104
D10: 1.02 | E10: Grower Ration #2 | I10: =J10*'Farrow Input'!F79 -> 2127878.058 | J10: =ROUND('Farrow Input'!E86*SUM('Farrow Input'!G86:H86)/1000,2) -> 163.66 | K10: =J10*'Farrow Input'!F79/'Farrow Input'!I70 -> 495.2421611
D11: 1.02 | E11: Finisher Ration | I11: =J11*'Farrow Input'!F79 -> 1113996.04 | J11: =ROUND('Farrow Input'!E87*SUM('Farrow Input'!G87:H87)/1000,2) -> 85.68 | K11: =J11*'Farrow Input'!F79/'Farrow Input'!I70 -> 259.2713452
I12: ==================================================
D13: Total Feed Cost | I13: =SUM(I9:I12) -> 3658582.467 | J13: =SUM(J9:J12) -> 281.39 | K13: =SUM(K9:K12) -> 851.4981773
C15: 2. | D15: Other Operating Costs:
D16: 2.01 | E16: Weanling Cost ** | I16: =J16*'Farrow Input'!F79 ->  | J16: =#REF!*'Farrow Input'!F75/'Farrow Input'!F79 ->  | K16: =J16*'Farrow Input'!F79/'Farrow Input'!I70 -> 
D17: 2.02 | E17: Veterinary Cost | I17: =J17*'Farrow Input'!F79 -> 0 | J17: =ROUND('Farrow Input'!G150*'Farrow Input'!F60/'Farrow Input'!F79,2) -> 0 | K17: =J17*'Farrow Input'!F79/'Farrow Input'!I70 -> 0
D18: 2.03 | E18: Maintenance & Repairs | I18: =J18*'Farrow Input'!F79 ->  | J18: =ROUND(#REF!*#REF!/'Farrow Input'!F79/100,2) ->  | K18: =J18*'Farrow Input'!F79/'Farrow Input'!I70 -> 
D19: B7 | E19: Hydro (Heat) | I19: =J19*'Farrow Input'!F79 ->  | J19: =ROUND(#REF!*#REF!*'Farrow Input'!I70/'Farrow Input'!F79,2) ->  | K19: =J19*'Farrow Input'!F79/'Farrow Input'!I70 -> 
D20: 2.05 | E20: Insurance | I20: =J20*'Farrow Input'!F79 -> 49392.63212 | J20: ='Farrow Finish Worksheet'!D231 -> 3.798901043 | K20: =J20*'Farrow Input'!F79/'Farrow Input'!I70 -> 11.49563707
D21: 2.06 | E21: Manure Haulage | I21: =J21*'Farrow Input'!F79 ->  | J21: =ROUND('Farrow Finish Worksheet'!#REF!,2) ->  | K21: =J21*'Farrow Input'!F79/'Farrow Input'!I70 -> 
D22: 2.07 | E22: Office Supplies | I22: =J22*'Farrow Input'!F79 ->  | J22: =ROUND(#REF!*'Farrow Input'!I70/'Farrow Input'!F79,2) ->  | K22: =J22*'Farrow Input'!F79/'Farrow Input'!I70 -> 
D23: 2.08 | E23: Marketing & Transportation | I23: =J23*'Farrow Input'!F79 -> 0 | J23: =ROUND('Farrow Input'!G184,2) -> 0 | K23: =J23*'Farrow Input'!F79/'Farrow Input'!I70 -> 0
D24: 2.09 | E24: Property Taxes | I24: ='Farrow Input'!G206 -> 0 | J24: =I24/'Farrow Input'!F79 -> 0 | K24: =J24*'Farrow Input'!F79/'Farrow Input'!I70 -> 0
I25: ================================================
D26: Subtotal Operating Costs | I26: =J26*'Farrow Input'!F79 ->  | J26: =J13+SUM(J16:J25) ->  | K26: =J26*'Farrow Input'!F79/'Farrow Input'!I70 -> 
D27: 2.10 | E27: Interest on Operating Cost | I27: =J27*'Farrow Input'!F79 ->  | J27: =ROUND((J16*#REF!/100*'Farrow Input'!I64/365)+((J26-J16)*#REF!/100*'Farrow Input'!I64/365),2) ->  | K27: =J27*'Farrow Input'!F79/'Farrow Input'!I70 -> 
I28: ================================================
C29: TOTAL OPERATING COSTS | I29: =J29*'Farrow Input'!F79 ->  | J29: =J26+J27 ->  | K29: =J29*'Farrow Input'!F79/'Farrow Input'!I70 -> 
B31: B. FIXED COSTS
C32: 3. | D32: Depreciation:
D33: 3.01 | E33: Buildings and Manure Storage | I33: =J33*'Farrow Input'!F79 ->  | J33: =#REF! ->  | K33: =J33*'Farrow Input'!F79/'Farrow Input'!I70 -> 
D34: 3.02 | E34: Equipment | I34: =J34*'Farrow Input'!F79 ->  | J34: =ROUND((#REF!-(#REF!/100*#REF!))/#REF!/'Farrow Input'!F79,2) ->  | K34: =J34*'Farrow Input'!F79/'Farrow Input'!I70 -> 
I35: =============================================
D36: Total Depreciation Cost | I36: =J36*'Farrow Input'!F79 ->  | J36: =SUM(J32:J35) ->  | K36: =J36*'Farrow Input'!F79/'Farrow Input'!I70 -> 
C38: 4. | D38: Investment:
D39: 4.01 | E39: Buildings and Manure Storage | I39: =J39*'Farrow Input'!F79 ->  | J39: =#REF! ->  | K39: =J39*'Farrow Input'!F79/'Farrow Input'!I70 -> 
D40: 4.02 | E40: Equipment | I40: =J40*'Farrow Input'!F79 ->  | J40: =ROUND((#REF!+(#REF!/100*#REF!))/2*#REF!/100/'Farrow Input'!F79,2) ->  | K40: =J40*'Farrow Input'!F79/'Farrow Input'!I70 -> 
I41: ===========================================
D42: Total Investment Cost | I42: =J42*'Farrow Input'!F79 ->  | J42: =SUM(J38:J41) ->  | K42: =J42*'Farrow Input'!F79/'Farrow Input'!I70 -> 
I43: ============================================
C44: TOTAL FIXED COSTS | I44: =J44*'Farrow Input'!F79 ->  | J44: =J36+J42 ->  | K44: =J44*'Farrow Input'!F79/'Farrow Input'!I70 -> 
B46: C. LABOUR
D47: ='Farrow Input'!F90 -> 48 | E47: hours/wk. @ | G47: ='Farrow Input'!F91 -> 27 | H47: /hour | I47: =J47*'Farrow Input'!F79 -> 67349.43382 | J47: =ROUND('Farrow Input'!H90*'Farrow Input'!F91/'Farrow Input'!F79,2) -> 5.18 | K47: =J47*'Farrow Input'!F79/'Farrow Input'!I70 -> 15.67490159
I48: ===============================================
C49: TOTAL COST OF PRODUCTION | I49: =J49*'Farrow Input'!F79 ->  | J49: =J29+J44+J47 ->  | K49: =J49*'Farrow Input'!F79/'Farrow Input'!I70 -> 
C51: BREAK-EVEN PRICE (carcass) | H51: $/100 kg | I51: $/CWT
H52: ---------------------- | I52: -----------------------
C53: Operating Cost | H53: =J29/('Farrow Input'!H62*'Farrow Input'!H55*'Farrow Input'!H54)*1000000 ->  | I53: =H53/2.2046 -> 
C54: Operating & Labour Cost | H54: =H53+J47/('Farrow Input'!H62*'Farrow Input'!H55*'Farrow Input'!H54)*1000000 ->  | I54: =H54/2.2046 -> 
C55: Operating, Labour & Fixed Cost | H55: =H54+J44/('Farrow Input'!H62*'Farrow Input'!H55*'Farrow Input'!H54)*1000000 ->  | I55: =H55/2.2046 -> 
C57: Break-even Price = Cost per Hog Sold / (Slaughter Wt. X Dressing % X Index)
C59: ** Footnote on Weanling Cost: This is not the price paid for the weanling. Because
C60: this figure is expressed on a "per hog sold" basis, it includes death loss.

Sheet Weaner-O (hidden)
B3: =============================================================================
C4: WEANER PIG PRODUCTION COST SUMMARY
B6: =============================================================================
B7: A. | C7: OPERATING COSTS | H7: TOTAL | I7: $/HOG SOLD | J7: $/SOW/YR
C8: 1. | D8: Feed Costs: | H8: ------------------------------------------------------------------------
D9: A1 | E9: Sow Lactation Ration | H9: =ROUND('Farrow Input'!G16*'Farrow Input'!F24*'Farrow Input'!E33*'Farrow Input'!M33/1000*'Farrow Input'!G13,2) -> 179859.04 | I9: =ROUND(J9/'Farrow Input'!$G$79,2) -> 13.83 | J9: =ROUND('Farrow Input'!G16*'Farrow Input'!F24*'Farrow Input'!E33*'Farrow Input'!M33/1000,2) -> 359.72
D10: 1.02 | E10: Sow Gestation Ration | H10: =ROUND((365-'Farrow Input'!G16*'Farrow Input'!F24)*'Farrow Input'!E32*'Farrow Input'!M32/1000*'Farrow Input'!G13,2) -> 436945.06 | I10: =ROUND(J10/'Farrow Input'!$G$79,2) -> 33.61 | J10: =ROUND((365-'Farrow Input'!G16*'Farrow Input'!F24)*'Farrow Input'!E32*'Farrow Input'!M32/1000,2) -> 873.89
D11: 1.03 | E11: Boar Ration | H11: =ROUND(365*'Farrow Input'!E34*'Farrow Input'!M34/1000*'Farrow Input'!E23/'Farrow Input'!E22*'Farrow Input'!G13,2) -> 3125.59 | I11: =ROUND(J11/'Farrow Input'!$G$79,2) -> 0.24 | J11: =ROUND(365*'Farrow Input'!E34*'Farrow Input'!M34/1000*'Farrow Input'!E23/'Farrow Input'!E22,2) -> 6.25
D12: 1.04 | E12: Creep Feed | H12: =ROUND('Farrow Input'!E35*'Farrow Input'!M35/1000*'Farrow Input'!F25*'Farrow Input'!G13,2) -> 29039.62 | I12: =ROUND(J12/'Farrow Input'!$G$79,2) -> 2.23 | J12: =ROUND('Farrow Input'!E35*'Farrow Input'!M35/1000*'Farrow Input'!F25,2) -> 58.08
D13: 1.05 | E13: Starter Ration #1 | H13: =ROUND('Farrow Input'!E36*'Farrow Input'!M36/1000*'Farrow Input'!F29*'Farrow Input'!G13,2) -> 98179.81 | I13: =ROUND(J13/'Farrow Input'!$G$79,2) -> 7.55 | J13: =ROUND('Farrow Input'!E36*'Farrow Input'!M36/1000*'Farrow Input'!F29,2) -> 196.36
D14: 1.05 | E14: Starter Ration #2 | H14: =ROUND('Farrow Input'!E37*'Farrow Input'!M37/1000*'Farrow Input'!F29*'Farrow Input'!G13,2) -> 234446.19 | I14: =ROUND(J14/'Farrow Input'!$G$79,2) -> 18.03 | J14: =ROUND('Farrow Input'!E37*'Farrow Input'!M37/1000*'Farrow Input'!F29,2) -> 468.89
H15: ====================================
D16: Total Feed Cost | H16: =J16*'Farrow Input'!E22 -> 981595 | I16: =ROUND(J16/'Farrow Input'!$G$79,2) -> 75.5 | J16: =SUM(J8:J15) -> 1963.19
C18: 2. | D18: Other Operating Costs:
D19: A7 | E19: Vet. Medicine & Supplies:
E20: Professional Services | H20: =J20*'Farrow Input'!E22 -> 5000 | I20: =ROUND(J20/'Farrow Input'!$G$79,2) -> 0.38 | J20: =ROUND('Farrow Input'!G148,2) -> 10
E21: Medication | H21: =J21*'Farrow Input'!E22 -> 32500 | I21: =ROUND(J21/'Farrow Input'!$G$79,2) -> 2.5 | J21: =ROUND('Farrow Input'!G149,2) -> 65
D22: A8 | E22: Maintenance & Repairs | H22: =J22*'Farrow Input'!E22 -> 82320 | I22: =ROUND(J22/'Farrow Input'!$G$79,2) -> 6.33 | J22: =ROUND('Farrow Input'!G152*'Farrow Input'!I113/100,2) -> 164.64
D23: A9 | E23: Hydro (Heat) | H23: =J23*'Farrow Input'!E22 ->  | I23: =ROUND(J23/'Farrow Input'!$G$79,2) ->  | J23: =ROUND('Farrow Input'!#REF!*'Farrow Input'!#REF!,2) -> 
D24: 2.04 | E24: Insurance | H24: =(+'Farrow Input'!$H$113+'Farrow Input'!$H$118)*'Farrow Input'!G160/100 -> 50839.53212 | I24: =ROUND(J24/'Farrow Input'!$G$79,2) -> 3.91 | J24: =H24/'Farrow Input'!G13 -> 101.6790642
D25: 2.05 | E25: Manure Haulage | H25: =J25*'Farrow Input'!E22 -> 35 | I25: =ROUND(J25/'Farrow Input'!$G$79,2) -> 0 | J25: =ROUND('Farrow Input'!G167/1000*'Farrow Input'!G168*365,2) -> 0.07
D26: 2.06 | E26: Office Supplies | H26: =J26*'Farrow Input'!E22 -> 1500 | I26: =ROUND(J26/'Farrow Input'!$G$79,2) -> 0.12 | J26: =ROUND((500+(2*'Farrow Input'!E22))/'Farrow Input'!E22,2) -> 3
D27: 2.07 | E27: Marketing & Transportation | H27: =J27*'Farrow Input'!E22 -> 0 | I27: =ROUND(J27/'Farrow Input'!$G$79,2) -> 0 | J27: =ROUND('Farrow Input'!G183*'Farrow Input'!F29,2) -> 0
D28: 2.08 | E28: Sow Replacement | H28: =J28*'Farrow Input'!E22 -> 19275 | I28: =ROUND(J28/'Farrow Input'!$G$79,2) -> 1.48 | J28: =ROUND('Farrow Input'!G192/100*('Farrow Input'!G196-('Farrow Input'!G193*'Farrow Input'!G194/100)),2) -> 38.55
D29: 2.09 | E29: Boar Replacement | H29: =J29*'Farrow Input'!E22 -> 175 | I29: =ROUND(J29/'Farrow Input'!$G$79,2) -> 0.01 | J29: =ROUND('Farrow Input'!G197/100*'Farrow Input'!E23*('Farrow Input'!G201-('Farrow Input'!G198*'Farrow Input'!G199/100))/'Farrow Input'!E22,2) -> 0.35
D30: 2.09 | E30: Property Taxes | H30: ='Farrow Input'!#REF! ->  | I30: =ROUND(J30/'Farrow Input'!$G$79,2) ->  | J30: =H30/'Farrow Input'!G13 -> 
H31: ====================================
E32: Subtotal Operating Costs | H32: =SUM(H15:H31) ->  | I32: =ROUND(J32/'Farrow Input'!$G$79,2) ->  | J32: =H32/'Farrow Input'!G13 -> 
D33: 2.10 | E33: Interest on Operating Cost | H33: =J33*'Farrow Input'!E22 -> 72797.18654 | I33: ='Farrow Finish Worksheet'!D361 -> 5.598999203 | J33: =I33*'Farrow Input'!G79 -> 145.5943731
H34: ====================================
C35: TOTAL OPERATING COSTS | H35: =J35*'Farrow Input'!E22 ->  | I35: =ROUND(J35/'Farrow Input'!$G$79,2) ->  | J35: =SUM(J32:J33) -> 
B37: B. | C37: FIXED COSTS
C38: 3. | D38: Depreciation:
D39: 3.01 | E39: Buildings and Manure Storage | H39: =J39*'Farrow Input'!E22 -> 2368.435995 | I39: =ROUND(J39/'Farrow Input'!F29,2) -> 0.17 | J39: ='Farrow Finish Worksheet'!D381 -> 4.73687199
D40: 3.02 | E40: Equipment | H40: =J40*'Farrow Input'!E22 -> 171280 | I40: =ROUND(J40/'Farrow Input'!F29,2) -> 12.49 | J40: =ROUND(('Farrow Input'!I112-('Farrow Input'!G142/100*'Farrow Input'!I112))/'Farrow Input'!G139,2) -> 342.56
H41: ====================================
D42: Total Depreciation Cost | H42: =J42*'Farrow Input'!E22 -> 173648.436 | I42: =ROUND(J42/'Farrow Input'!F29,2) -> 12.66 | J42: =SUM(J38:J41) -> 347.296872
C44: 4. | D44: Investment:
D45: 4.01 | E45: Buildings and Manure Storage | H45: =J45*'Farrow Input'!E22 -> 2613.556281 | I45: =ROUND(J45/'Farrow Input'!F29,2) -> 0.19 | J45: ='Farrow Finish Worksheet'!D428 -> 5.227112561
D46: 4.02 | E46: Equipment | H46: =J46*'Farrow Input'!E22 -> 28785 | I46: =ROUND(J46/'Farrow Input'!F29,2) -> 2.1 | J46: =ROUND(('Farrow Input'!I112+('Farrow Input'!G142/100*'Farrow Input'!I112))/2*'Farrow Input'!G144/100,2) -> 57.57
D47: 4.03 | E47: Breeding Herd | H47: =J47*'Farrow Input'!E22 -> 5100 | I47: =ROUND(J47/'Farrow Input'!F29,2) -> 0.37 | J47: =ROUND('Farrow Input'!I118*'Farrow Input'!G144/100,2) -> 10.2
H48: ====================================
D49: Total Investment Cost | H49: =J49*'Farrow Input'!E22 -> 36498.55628 | I49: =ROUND(J49/'Farrow Input'!F29,2) -> 2.66 | J49: =SUM(J44:J48) -> 72.99711256
H50: ====================================
C51: TOTAL FIXED COSTS | H51: =J51*'Farrow Input'!E22 -> 210146.9923 | I51: =ROUND(J51/'Farrow Input'!F29,2) -> 15.32 | J51: =J42+J49 -> 420.2939846
B53: C. | C53: LABOUR
D54: ='Farrow Input'!F48 -> 120 | E54: hours/wk. | H54: =J54*'Farrow Input'!E22 -> 168480 | I54: =ROUND(J54/'Farrow Input'!F29,2) -> 12.28 | J54: =ROUND('Farrow Input'!F48*'Farrow Input'!F49*52/'Farrow Input'!E22,2) -> 336.96
H55: ====================================
C56: TOTAL COST OF PRODUCTION | H56: =J56*'Farrow Input'!E22 ->  | I56: =ROUND(J56/'Farrow Input'!F29,2) ->  | J56: =J35+J51+J54 -> 
B58: =============================================================================
F59: Revenue per pig sold: | J59: =#REF! -> 
F61: Net of Operating Cost | J61: =IF(J59=0,0,J59-I35) -> 
F62: Net of Operating & Labour Cost | J62: =IF(J59=0,0,J61-I54) -> 
F63: Net of Operating, Labour & Fixed Cost | J63: =IF(J59=0,0,J62-I51) -> 

Sheet Ingredient-Summary
B3: Summary of Purchased Feeds Used
C5: Farrow finish | E5: ='Farrow Input'!G13 -> 500 | F5: sows
C6: Total sold | E6: ='Farrow Input'!F79 -> 13001.8212 | F6: pigs sold
E8: Total | F8: Total | G8: Total | H8: Total
E9: per Year | F9: per Month | G9: per Pig | H9: per Pig
E10: (tonnes) | F10: (tonnes) | G10: (kgs) | H10: (lbs)
B12: ='Farrow Input'!A32 -> Dry Sow Ration | E12: =IF('Farrow Input'!G32<=0,0,(('Farrow Input'!E32*'Farrow Finish Worksheet'!D30)*E5)/1000) -> 464.6545 | F12: =E12/12 -> 38.72120833 | G12: =E12/$E$6*1000 -> 35.73764728 | H12: =G12*2.2046 -> 78.78721719
B13: ='Farrow Input'!A33 -> Nursing Sow Ration | E13: =IF('Farrow Input'!G33<=0,0,(('Farrow Input'!E33*'Farrow Finish Worksheet'!D11)*E5)/1000) -> 163.1847 | F13: 13.598725 | G13: 12.55091094 | H13: 27.66973827
B14: ='Farrow Input'!A34 -> Boar Ration | E14: =IF('Farrow Input'!G34<=0,0,(('Farrow Input'!E34*'Farrow Finish Worksheet'!D37)*'Farrow Input'!E23)/1000) -> 3.285 | F14: 0.27375 | G14: 0.2526569124 | H14: 0.5570074291
B15: ='Farrow Input'!A35 -> Per Starter 1(Ration 1) | E15: =IF('Farrow Input'!G35<=0,0,('Farrow Input'!E35*'Farrow Input'!E27)/1000) -> 8.15306 | F15: 0.6794216667 | G15: 0.6270706138 | H15: 1.382439875
B16: ='Farrow Input'!A36 -> Pre Starter 2 (Ration 2) | E16: =IF('Farrow Input'!G36<=0,0,('Farrow Input'!E36*'Farrow Input'!E27)/1000) -> 40.7653 | F16: 3.397108333 | G16: 3.135353069 | H16: 6.912199376
B17: ='Farrow Input'!A37 -> Starter 1 (Ration 3) | E17: =IF('Farrow Input'!G37<=0,0,('Farrow Input'!E37*'Farrow Input'!E27)/1000) -> 126.513 | F17: 10.54275 | G17: 9.730406076 | H17: 21.45165323
B18: ='Farrow Input'!A38 -> Starter 2 (Ration 4) | E18: =IF('Farrow Input'!G38<=0,0,('Farrow Input'!E38*'Farrow Input'!E27)/1000) -> 224.912 | F18: 18.74266667 | G18: 17.29849969 | H18: 38.13627242
B19: ='Farrow Input'!B85 -> Starter | E19: =IF('Farrow Input'!G85<=0,0,('Farrow Input'!E85*'Farrow Input'!E27)/1000) -> 383.7561 | F19: 31.979675 | G19: 29.5155651 | H19: 65.07001481
B20: ='Farrow Input'!B86 -> Grower | E20: =IF('Farrow Input'!G86<=0,0,('Farrow Input'!E86*'Farrow Input'!E27)/1000) -> 2319.405 | F20: 193.28375 | G20: 178.3907781 | H20: 393.2803093
B21: ='Farrow Input'!B87 -> Finish | E21: =IF('Farrow Input'!G87<=0,0,('Farrow Input'!E87*'Farrow Input'!E27)/1000) -> 1279.187 | F21: 106.5989167 | G21: 98.38521699 | H21: 216.9000494
B22: Total | E22: =SUM(E12:E21) -> 5013.81566 | F22: =SUM(F12:F21) -> 417.8179717 | G22: =SUM(G12:G21) -> 385.6241047 | H22: =SUM(H12:H21) -> 850.1469013
B24: Summary of Home Mixed Feed Ingredients Used
E25: Total | F25: Total | G25: Total | H25: Total
E26: per Year | F26: per Month | G26: per Pig | H26: per Pig
E27: (tonnes) | F27: (tonnes) | G27: (kgs) | H27: (lbs)
B28: ='Feed Input'!B4 -> Wheat | E28: ='Feed Input'!H111+'Feed Input'!I136+'Feed Input'!H162 -> 828.5584742 | F28: =E28/12 -> 69.04653952 | G28: =E28/$E$6*1000 -> 63.72633968 | H28: =G28*2.2046 -> 140.4910885
B29: ='Feed Input'!B5 -> Barley | E29: ='Feed Input'!H112+'Feed Input'!I137+'Feed Input'!H163 -> 2965.612966 | F29: 247.1344139 | G29: 228.0921204 | H29: =G29*2.2046 -> 502.8518886
B30: ='Feed Input'!B6 -> Corn | E30: ='Feed Input'!H113+'Feed Input'!I138+'Feed Input'!H164 -> 87.631338 | F30: 7.3026115 | G30: 6.739927942 | H30: =G30*2.2046 -> 14.85884514
B31: ='Feed Input'!B7 -> Soybean Meal | E31: ='Feed Input'!H114+'Feed Input'!I139+'Feed Input'!H165 -> 347.3554781 | F31: 28.94628984 | G31: 26.71590947 | H31: 58.89789401
B32: ='Feed Input'!B8 -> Canola Meal | E32: ='Feed Input'!H115+'Feed Input'!I140+'Feed Input'!H166 -> 366.8066615 | F32: 30.56722179 | G32: 28.21194476 | H32: 62.19605342
B33: ='Feed Input'!B9 -> Peas | E33: ='Feed Input'!H116+'Feed Input'!I141+'Feed Input'!H167 -> 125.096335 | F33: 10.42469458 | G33: 9.621447109 | H33: 21.2114423
B34: ='Feed Input'!B10 -> Sow Micro Premix | E34: ='Feed Input'!H117+'Feed Input'!I142+'Feed Input'!H168 -> 5.1573378 | F34: 0.42977815 | G34: 0.3966627229 | H34: 0.8744826389
B35: ='Feed Input'!B11 -> Grower Micro Premix | E35: ='Feed Input'!H118+'Feed Input'!I143+'Feed Input'!H169 -> 11.6555286 | F35: 0.97129405 | G35: 0.8964535368 | H35: 1.976321467
B36: ='Feed Input'!B12 -> Canola Oil | E36: ='Feed Input'!H119+'Feed Input'!I144+'Feed Input'!H170 -> 25.31510732 | F36: 2.109592277 | G36: 1.947043182 | H36: 4.292451399
B37: ='Feed Input'!B13 -> Whey Powder | E37: ='Feed Input'!H120+'Feed Input'!I145+'Feed Input'!H171 -> 21.82602276 | F37: 1.81883523 | G37: 1.678689656 | H37: 3.700839216
B38: ='Feed Input'!B14 -> Fish Meal | E38: ='Feed Input'!H121+'Feed Input'!I146+'Feed Input'!H172 -> 15.71403916 | F38: 1.309503263 | G38: 1.208602927 | H38: 2.664486013
B39: ='Feed Input'!B15 -> Plasma | E39: ='Feed Input'!H122+'Feed Input'!I147+'Feed Input'!H173 -> 0.48103054 | F39: 0.04008587833 | G39: 0.03699716621 | H39: 0.08156395263
B40: ='Feed Input'!B16 -> Limestone | E40: ='Feed Input'!H123+'Feed Input'!I148+'Feed Input'!H174 -> 50.85511445 | F40: 4.237926204 | G40: 3.911383926 | H40: 8.623037003
B41: ='Feed Input'!B17 -> Dical (16% Ca-21% P) | E41: ='Feed Input'!H124+'Feed Input'!I149+'Feed Input'!H175 -> 17.8753648 | F41: 1.489613733 | G41: 1.374835458 | H41: 3.03096225
B42: ='Feed Input'!B18 -> Salt - 96% | E42: ='Feed Input'!H125+'Feed Input'!I150+'Feed Input'!H176 -> 17.45303021 | F42: 1.454419184 | G42: 1.342352732 | H42: 2.959350833
B43: ='Feed Input'!B19 -> Phytase | E43: ='Feed Input'!H126+'Feed Input'!I151+'Feed Input'!H177 -> 2.4338627 | F43: 0.2028218917 | G43: 0.1871939833 | H43: 0.4126878555
B44: ='Feed Input'!B20 -> L-Lysine HCL | E44: ='Feed Input'!H127+'Feed Input'!I152+'Feed Input'!H178 -> 3.17627108 | F44: 0.2646892567 | G44: 0.2442943209 | H44: 0.5385712598
B45: ='Feed Input'!B21 -> L-Threonine | E45: ='Feed Input'!H128+'Feed Input'!I153+'Feed Input'!H179 -> 0 | F45: 0 | G45: 0 | H45: 0
B46: ='Feed Input'!B22 -> D L-Methionine | E46: ='Feed Input'!H129+'Feed Input'!I154+'Feed Input'!H180 -> 0 | F46: 0 | G46: 0 | H46: 0
B47: ='Feed Input'!B23 -> Oats - Groats | E47: ='Feed Input'!H129+'Feed Input'!I154+'Feed Input'!H181 -> 0 | F47: 0 | G47: 0 | H47: 0
B48: Total Ration Used | E48: =SUM(E28:E47) -> 4893.003963 | F48: =SUM(F28:F47) -> 407.7503302 | G48: =SUM(G28:G47) -> 376.3321989 | H48: =SUM(H28:H47) -> 829.6619658
B50: Total | E50: =E22+E48 -> 9906.819623 | F50: =F22+F48 -> 825.5683019 | G50: =G22+G48 -> 761.9563037 | H50: =H22+H48 -> 1679.808867
D61: Processing Cost | G61: cost/tonne
E63: Labour | G63: ='Feed Input'!E27 -> 10
E64: Hydro, fuel, etc. | G64: ='Feed Input'!E25 -> 10
E65: Feed Mill Depreciation | G65: =IF(ISERR(('Farrow Input'!H111/10)/'Ingredient-Summary'!E48),0,('Farrow Input'!H111/10)/'Ingredient-Summary'!E48) -> 1.226240577
E66: Feed Mill Investment | G66: =IF(ISERR((('Farrow Input'!H111/2)*'Farrow Input'!G144/100)/'Ingredient-Summary'!E48),0,(('Farrow Input'!H111/2)*'Farrow Input'!G144/100)/'Ingredient-Summary'!E48) -> 0.1686080793
E67: Building Depreciation | G67: =IF(ISERR(('Farrow Input'!H103/10)/'Ingredient-Summary'!E48),0,('Farrow Input'!H103/10)/'Ingredient-Summary'!E48) -> 0.9196804324
E68: Building Investment | G68: =IF(ISERR((('Farrow Input'!H103/2)*'Farrow Input'!G144/100)/'Ingredient-Summary'!E48),0,(('Farrow Input'!H103/2)*'Farrow Input'!G144/100)/'Ingredient-Summary'!E48) -> 0.1264560595
G69: =SUM(G63:G68) -> 22.44098515
E70: Weight loss adjustment | G70: =G69*'Feed Input'!E26/100 -> 0.2805123143
E71: ='Feed Input'!E26/100 -> 0.0125
E72: Total Processing Cost | G72: =G69+G70 -> 22.72149746
